Workbook

Sheet input
I2: Messsystemanalyse Verfahren 7 attributive Merkmale (Bosch Heft Nr. 10 / AIAG)
B6: Teil | C6: Prüfergebnisse | I6: Refe-renz | J6: Ref. Wert | K6: Code
C7: A-1 | D7: A-2 | E7: A-3 | F7: A-4 | G7: A-5 | H7: A-6 | N7: Merkmal | U7: Messmittel
B8: 1 | C8: 1 | D8: 1 | E8: 1 | F8: 1 | G8: 1 | H8: 1 | I8: 0 | K8: =IF(C8<>"",IF(SUM(C8:I8)=COUNT(C8:I8),"+",IF(SUM(C8:I8)=0,"-","x")),"") -> x | N8: Bezeichnung | U8: Name
B9: =B8+1 -> 2 | C9: 1 | D9: 1 | E9: 1 | F9: 1 | G9: 1 | H9: 1 | I9: 1 | K9: + | N9: Merkmalsnummer | U9: Nummer
B10: 3 | C10: 0 | D10: 0 | E10: 0 | F10: 0 | G10: 0 | H10: 0 | I10: 0 | K10: - | N10: Masseinheit | U10: Standort
B11: 4 | C11: 0 | D11: 0 | E11: 0 | F11: 0 | G11: 0 | H11: 0 | I11: 0 | K11: - | N11: Zeichnungsnummer | U11: Kalibrierschein
B12: 5 | C12: 0 | D12: 0 | E12: 0 | F12: 0 | G12: 0 | H12: 0 | I12: 0 | K12: - | N12: Änderungsstand
B13: 6 | C13: 1 | D13: 1 | E13: 0 | F13: 1 | G13: 1 | H13: 0 | I13: 1 | K13: x | U13: Bewertung Ergebnis / Fleiss Kappa
B14: 7 | C14: 1 | D14: 1 | E14: 1 | F14: 1 | G14: 1 | H14: 1 | I14: 1 | K14: + | N14: Text1 | U14: Ergebnis <= | X14: 0.7 | Y14: 0.8 | Z14: 1
B15: 8 | C15: 1 | D15: 1 | E15: 1 | F15: 1 | G15: 1 | H15: 1 | I15: 1 | K15: + | N15: Text1 | U15: Fleiss Kappa <= | X15: 0.7 | Y15: 0.8 | Z15: 1
B16: 9 | C16: 0 | D16: 0 | E16: 0 | F16: 0 | G16: 0 | H16: 0 | I16: 0 | K16: - | N16: Text1 | U16: Spezifikation
B17: 10 | C17: 1 | D17: 1 | E17: 1 | F17: 1 | G17: 1 | H17: 1 | I17: 1 | K17: + | N17: Prüfdatum | U17: Untere Spez.-Grenze
B18: 11 | C18: 1 | D18: 1 | E18: 1 | F18: 1 | G18: 1 | H18: 1 | I18: 1 | K18: + | N18: Prüfung durch | U18: Obere Spez.-Grenze
B19: 12 | C19: 0 | D19: 0 | E19: 0 | F19: 0 | G19: 0 | H19: 0 | I19: 0 | K19: - | N19: Prüfung durch Name | U19: Auflösung
B20: 13 | C20: 1 | D20: 1 | E20: 1 | F20: 1 | G20: 1 | H20: 1 | I20: 1 | K20: +
B21: 14 | C21: 1 | D21: 1 | E21: 0 | F21: 1 | G21: 1 | H21: 1 | I21: 1 | K21: x | N21: Anzahl Durchgänge | R21: =IF(C8<>"",COUNT(C8:H8),"") -> 6
B22: 15 | C22: 1 | D22: 1 | E22: 1 | F22: 1 | G22: 1 | H22: 1 | I22: 1 | K22: + | N22: Anzahl Teile | R22: =IF(C8<>"",COUNT(C8:C57),"") -> 36
B23: 16 | C23: 1 | D23: 1 | E23: 1 | F23: 1 | G23: 1 | H23: 1 | I23: 1 | K23: +
B24: 17 | C24: 1 | D24: 1 | E24: 1 | F24: 1 | G24: 1 | H24: 1 | I24: 1 | K24: +
B25: 18 | C25: 1 | D25: 1 | E25: 1 | F25: 1 | G25: 1 | H25: 1 | I25: 1 | K25: +
B26: 19 | C26: 1 | D26: 1 | E26: 1 | F26: 1 | G26: 1 | H26: 1 | I26: 1 | K26: + | R26: Innerhalb Prüfer | S26: Prüfer vs. Referenz
B27: 20 | C27: 1 | D27: 1 | E27: 1 | F27: 1 | G27: 1 | H27: 1 | I27: 1 | K27: +
B28: 21 | C28: 1 | D28: 1 | E28: 0 | F28: 1 | G28: 0 | H28: 1 | I28: 1 | K28: x | N28: Geprüft gesamt | R28: =calculation!V28 -> 36 | S28: =calculation!V38 -> 36
B29: 22 | C29: 0 | D29: 0 | E29: 1 | F29: 0 | G29: 1 | H29: 0 | I29: 0 | K29: x | N29: Anzahl richtig | R29: =calculation!V29 -> 28 | S29: =calculation!V39 -> 27
B30: 23 | C30: 1 | D30: 1 | E30: 1 | F30: 1 | G30: 1 | H30: 1 | I30: 1 | K30: + | N30: 95% obere CI | R30: =calculation!V30 -> 0.8988494697 | S30: =calculation!V43 -> 0.8787967059
B31: 24 | C31: 1 | D31: 1 | E31: 1 | F31: 1 | G31: 1 | H31: 1 | I31: 1 | K31: + | N31: Ergebnis | R31: =calculation!V31 -> 0.7777777778 | S31: =calculation!V44 -> 0.75
B32: 25 | C32: 0 | D32: 0 | E32: 0 | F32: 0 | G32: 0 | H32: 0 | I32: 0 | K32: - | N32: 95% untere CI | R32: =calculation!V32 -> 0.6084823508 | S32: =calculation!V45 -> 0.5779704154
B33: 26 | C33: 0 | D33: 1 | E33: 0 | F33: 0 | G33: 0 | H33: 0 | I33: 0 | K33: x | N33: Fleiss Kappa | R33: =calculation!V33 -> 0.76 | S33: =calculation!V46 -> 0.8002126603
B34: 27 | C34: 1 | D34: 1 | E34: 1 | F34: 1 | G34: 1 | H34: 1 | I34: 1 | K34: +
B35: 28 | C35: 1 | D35: 1 | E35: 1 | F35: 1 | G35: 1 | H35: 1 | I35: 1 | K35: +
B36: 29 | C36: 1 | D36: 1 | E36: 1 | F36: 1 | G36: 1 | H36: 1 | I36: 1 | K36: +
B37: 30 | C37: 0 | D37: 0 | E37: 0 | F37: 0 | G37: 0 | H37: 1 | I37: 0 | K37: x
B38: 31 | C38: 1 | D38: 1 | E38: 1 | F38: 1 | G38: 1 | H38: 1 | I38: 1 | K38: +
B39: 32 | C39: 1 | D39: 1 | E39: 1 | F39: 1 | G39: 1 | H39: 1 | I39: 1 | K39: +
B40: 33 | C40: 1 | D40: 1 | E40: 1 | F40: 1 | G40: 1 | H40: 1 | I40: 1 | K40: =IF(C40<>"",IF(SUM(C40:I40)=COUNT(C40:I40),"+",IF(SUM(C40:I40)=0,"-","x")),"") -> +
B41: 34 | C41: 0 | D41: 0 | E41: 1 | F41: 0 | G41: 0 | H41: 1 | I41: 0 | K41: x
B42: 35 | C42: 1 | D42: 1 | E42: 1 | F42: 1 | G42: 1 | H42: 1 | I42: 1 | K42: +
B43: 36 | C43: 1 | D43: 1 | E43: 0 | F43: 1 | G43: 1 | H43: 1 | I43: 1 | K43: x
B44: 37
B45: 38
B46: 39
B47: 40
B48: =B47+1 -> 41 | M48: Anmerkungen:
B49: =B48+1 -> 42 | M49: Mindestens 3 Prüfer und 3 Durchgänge, ansonsten falsche Ergebnisse
B50: 43 | M50: Bosch ermittelt aus allen Kappa Werten den Minimalwert und bewertet anhand dessen
B51: 44 | M51: das Messsystem
B52: 45
B53: 46
B54: 47
B55: 48
B56: 49
B57: 50

Sheet calculation (hidden)
I2: Messsystemanalyse Verfahren 7 attributive Merkmale (Bosch Heft Nr. 10 / AIAG)
AD3: =TODAY() -> 2023-11-21 | AF3: 2023-11-17 | AG3: =IF(AD3=AF3,1,0) -> 0 | AI3: 2023-11-21 | AX3: A*B*C
AT4: geändert | AX4: nik | BA4: nik*(Nik-1)
AD5: 3 Durchl | AF5: mix | AG5: 2 Durchl. | AX5: k=1 | AY5: K=2 | BA5: k=1 | BB5: K=2 | CD5: Minitab Tabelle
B6: Part | C6: Appraiser-Evaluation | I6: Stan-dard | J6: Standard Value | K6: Code | AD6: A | AL6: B | AP6: C | AT6: All | AX6: 0 | AY6: 1 | BA6: 0 | BB6: 1 | BG6: A*A | BI6: B*B | BL6: C*C | BQ6: A1-Ref | BR6: A2-Ref | BS6: A3-Ref | BT6: B1-Ref | BU6: B2-Ref | BV6: B3-Ref | BW6: C1-Ref | BX6: C2-Ref | BY6: C3-Ref | CD6: Reihenfolge | CE6: Prüfer | CF6: Versuch | CG6: Prüfeinheit | CH6: Ergebnis | CI6: Referenz | CL6: Reihenfolge | CM6: Prüfer | CN6: Versuch | CO6: Prüfeinheit | CP6: Ergebnis | CQ6: Referenz
C7: A-1 | D7: A-2 | E7: A-3 | F7: B-1 | G7: B-2 | H7: B-3 | AD7: =IF(C8<>"",IF(AND(C8=D8,D8=E8),1,0),"") -> 1 | AE7: =IF(C8<>"",IF(AND(C8=D8,D8=E8,E8=I8),1,0),"") -> 0 | AF7: =IF(AD7<>"",IF(AD7<>AE7,$I8,""),"") -> 0 | AI7: =IF(AG7<>"",IF(AG7<>AH7,$I8,""),"") ->  | AL7: =IF(F8<>"",IF(AND(F8=G8,F8=H8),1,0),"") -> 1 | AM7: =IF(F8<>"",IF(AND(F8=G8,G8=H8,H8=I8),1,0),"") -> 0 | AN7: =IF(AL7<>"",IF(AL7<>AM7,I8,""),"") -> 0 | AP7: =IF(#REF!<>"",IF(AND(#REF!=#REF!,#REF!=#REF!),1,0),"") ->  | AQ7: =IF(#REF!<>"",IF(AND(#REF!=#REF!,#REF!=#REF!,#REF!=I8),1,0),"") ->  | AR7: =IF(AP7<>"",IF(AP7<>AQ7,I8,""),"") ->  | AT7: =IF(C8="","",IF(OR(SUM(C8:H8)=6,SUM(C8:H8)=0),1,0)) -> 1 | AU7: =IF(C8="","",IF(AND(SUM(C8:I8)>0,SUM(C8:I8)<7),0,1)) -> 0 | CD7: 1 | CE7: A | CF7: 1 | CG7: 1 | CH7: =C8 -> 1 | CI7: =I8 -> 0 | CL7: 1 | CM7: A | CN7: 1 | CO7: 1 | CP7: 1 | CQ7: 0
B8: 1 | C8: =IF(input!C8="","",input!C8) -> 1 | D8: =IF(input!D8="","",input!D8) -> 1 | E8: =IF(input!E8="","",input!E8) -> 1 | F8: =IF(input!F8="","",input!F8) -> 1 | G8: =IF(input!G8="","",input!G8) -> 1 | H8: =IF(input!H8="","",input!H8) -> 1 | I8: =IF(input!I8="","",input!I8) -> 0 | K8: =IF(C8<>"",IF(SUM(C8:H8)=COUNT(C8:H8),"+",IF(SUM(C8:H8)=0,"-","x")),"") -> + | N8: Reference Value | U8: Date Preformed | AD8: 1 | AE8: 1 | AF8: =IF(AD8<>"",IF(AD8<>AE8,$I9,""),"") ->  | AI8: =IF(AG8<>"",IF(AG8<>AH8,$I9,""),"") ->  | AL8: 1 | AM8: 1 | AP8: =IF(#REF!<>"",IF(AND(#REF!=#REF!,#REF!=#REF!),1,0),"") ->  | AQ8: =IF(#REF!<>"",IF(AND(#REF!=#REF!,#REF!=#REF!,#REF!=I9),1,0),"") ->  | AT8: 1 | AU8: 1 | AX8: =COUNTIF(C8:H8,0) -> 0 | AY8: =COUNTIF(C8:H8,1) -> 6 | BA8: =AX8*(AX8-1) -> 0 | BB8: =AY8*(AY8-1) -> 30 | BD8: =IF(C8="","",IF(C8=D8,2,0)) -> 2 | BE8: =IF(E8="","",IF(C8=E8,2,0)) -> 2 | BF8: =IF(D8="","",IF(D8=E8,2,0)) -> 2 | BG8: =SUM(BD8:BF8) -> 6 | BH8: =IF(G8="","",IF(F8=G8,2,0)) -> 2 | BI8: =IF(H8="","",IF(F8=H8,2,0)) -> 2 | BJ8: =IF(H8="","",IF(G8=H8,2,0)) -> 2 | BK8: =SUM(BH8:BJ8) -> 6 | BL8: =IF(#REF!="","",IF(#REF!=#REF!,2,0)) ->  | BM8: =IF(#REF!="","",IF(#REF!=#REF!,2,0)) ->  | BN8: =IF(#REF!="","",IF(#REF!=#REF!,2,0)) ->  | BO8: =SUM(BL8:BN8) ->  | BP8: =BA8+BB8 -> 30 | BQ8: =IF(C8="","",IF(C8=$I8,2,0)) -> 0 | BR8: =IF(D8="","",IF(D8=$I8,2,0)) -> 0 | BS8: =IF(E8="","",IF(E8=$I8,2,0)) -> 0 | BT8: =IF(F8="","",IF(F8=$I8,2,0)) -> 0 | BU8: =IF(G8="","",IF(G8=$I8,2,0)) -> 0 | BV8: =IF(H8="","",IF(H8=$I8,2,0)) -> 0 | BW8: =IF(#REF!="","",IF(#REF!=$I8,2,0)) ->  | BX8: =IF(#REF!="","",IF(#REF!=$I8,2,0)) ->  | BY8: =IF(#REF!="","",IF(#REF!=$I8,2,0)) ->  | CD8: 2 | CE8: A | CF8: 1 | CG8: 2 | CH8: 1 | CI8: =I9 -> 1 | CL8: 2 | CM8: A | CN8: 1 | CO8: 2 | CP8: 1 | CQ8: 1
B9: =B8+1 -> 2 | C9: =IF(input!C9="","",input!C9) -> 1 | D9: =IF(input!D9="","",input!D9) -> 1 | E9: =IF(input!E9="","",input!E9) -> 1 | F9: =IF(input!F9="","",input!F9) -> 1 | G9: =IF(input!G9="","",input!G9) -> 1 | H9: =IF(input!H9="","",input!H9) -> 1 | I9: =IF(input!I9="","",input!I9) -> 1 | K9: + | N9: Specification Number | U9: Gage Name | AD9: 1 | AE9: 1 | AL9: 1 | AM9: 1 | AP9: =IF(#REF!<>"",IF(AND(#REF!=#REF!,#REF!=#REF!),1,0),"") ->  | AQ9: =IF(#REF!<>"",IF(AND(#REF!=#REF!,#REF!=#REF!,#REF!=I10),1,0),"") ->  | AT9: 1 | AU9: 1 | AX9: 0 | AY9: 6 | BA9: =AX9*(AX9-1) -> 0 | BB9: 30 | BD9: 2 | BE9: 2 | BF9: 2 | BG9: =SUM(BD9:BF9) -> 6 | BH9: 2 | BI9: 2 | BJ9: 2 | BK9: =SUM(BH9:BJ9) -> 6 | BL9: =IF(#REF!="","",IF(#REF!=#REF!,2,0)) ->  | BM9: =IF(#REF!="","",IF(#REF!=#REF!,2,0)) ->  | BN9: =IF(#REF!="","",IF(#REF!=#REF!,2,0)) ->  | BO9: =SUM(BL9:BN9) ->  | BP9: =BA9+BB9 -> 30 | BQ9: 2 | BR9: 2 | BS9: 2 | BT9: 2 | BU9: 2 | BV9: 2 | BW9: =IF(#REF!="","",IF(#REF!=$I9,2,0)) ->  | BX9: =IF(#REF!="","",IF(#REF!=$I9,2,0)) ->  | BY9: =IF(#REF!="","",IF(#REF!=$I9,2,0)) ->  | CD9: 3 | CE9: A | CF9: 1 | CG9: 3 | CH9: 0 | CI9: 0 | CL9: 3 | CM9: A | CN9: 1 | CO9: 3 | CP9: 0 | CQ9: 0
B10: 3 | C10: =IF(input!C10="","",input!C10) -> 0 | D10: =IF(input!D10="","",input!D10) -> 0 | E10: =IF(input!E10="","",input!E10) -> 0 | F10: =IF(input!F10="","",input!F10) -> 0 | G10: =IF(input!G10="","",input!G10) -> 0 | H10: =IF(input!H10="","",input!H10) -> 0 | I10: =IF(input!I10="","",input!I10) -> 0 | K10: - | N10: Characteristic Name | U10: Gage Number | AD10: 1 | AE10: 1 | AL10: 1 | AM10: 1 | AP10: =IF(#REF!<>"",IF(AND(#REF!=#REF!,#REF!=#REF!),1,0),"") ->  | AQ10: =IF(#REF!<>"",IF(AND(#REF!=#REF!,#REF!=#REF!,#REF!=I11),1,0),"") ->  | AT10: 1 | AU10: 1 | AX10: 6 | AY10: 0 | BA10: 30 | BB10: 0 | BD10: 2 | BE10: 2 | BF10: 2 | BG10: 6 | BH10: 2 | BI10: 2 | BJ10: 2 | BK10: 6 | BL10: =IF(#REF!="","",IF(#REF!=#REF!,2,0)) ->  | BM10: =IF(#REF!="","",IF(#REF!=#REF!,2,0)) ->  | BN10: =IF(#REF!="","",IF(#REF!=#REF!,2,0)) ->  | BP10: 30 | BQ10: 2 | BR10: 2 | BS10: 2 | BT10: 2 | BU10: 2 | BV10: 2 | BW10: =IF(#REF!="","",IF(#REF!=$I10,2,0)) ->  | BX10: =IF(#REF!="","",IF(#REF!=$I10,2,0)) ->  | BY10: =IF(#REF!="","",IF(#REF!=$I10,2,0)) ->  | CD10: 4 | CE10: A | CF10: 1 | CG10: 4 | CH10: 0 | CI10: 0 | CL10: 4 | CM10: A | CN10: 1 | CO10: 4 | CP10: 0 | CQ10: 0
B11: 4 | C11: =IF(input!C11="","",input!C11) -> 0 | D11: =IF(input!D11="","",input!D11) -> 0 | E11: =IF(input!E11="","",input!E11) -> 0 | F11: =IF(input!F11="","",input!F11) -> 0 | G11: =IF(input!G11="","",input!G11) -> 0 | H11: =IF(input!H11="","",input!H11) -> 0 | I11: =IF(input!I11="","",input!I11) -> 0 | K11: - | N11: Characteristic Type | U11: Gage Type | AD11: 1 | AE11: 1 | AL11: 1 | AM11: 1 | AP11: =IF(#REF!<>"",IF(AND(#REF!=#REF!,#REF!=#REF!),1,0),"") ->  | AQ11: =IF(#REF!<>"",IF(AND(#REF!=#REF!,#REF!=#REF!,#REF!=I12),1,0),"") ->  | AT11: 1 | AU11: 1 | AX11: 6 | AY11: 0 | BA11: 30 | BB11: 0 | BD11: 2 | BE11: 2 | BF11: 2 | BG11: 6 | BH11: 2 | BI11: 2 | BJ11: 2 | BK11: 6 | BL11: =IF(#REF!="","",IF(#REF!=#REF!,2,0)) ->  | BM11: =IF(#REF!="","",IF(#REF!=#REF!,2,0)) ->  | BN11: =IF(#REF!="","",IF(#REF!=#REF!,2,0)) ->  | BP11: 30 | BQ11: 2 | BR11: 2 | BS11: 2 | BT11: 2 | BU11: 2 | BV11: 2 | BW11: =IF(#REF!="","",IF(#REF!=$I11,2,0)) ->  | BX11: =IF(#REF!="","",IF(#REF!=$I11,2,0)) ->  | BY11: =IF(#REF!="","",IF(#REF!=$I11,2,0)) ->  | CD11: 5 | CE11: A | CF11: 1 | CG11: 5 | CH11: 0 | CI11: 0 | CL11: 5 | CM11: A | CN11: 1 | CO11: 5 | CP11: 0 | CQ11: 0
B12: 5 | C12: =IF(input!C12="","",input!C12) -> 0 | D12: =IF(input!D12="","",input!D12) -> 0 | E12: =IF(input!E12="","",input!E12) -> 0 | F12: =IF(input!F12="","",input!F12) -> 0 | G12: =IF(input!G12="","",input!G12) -> 0 | H12: =IF(input!H12="","",input!H12) -> 0 | I12: =IF(input!I12="","",input!I12) -> 0 | K12: - | N12: TPS Anzahl | AD12: 0 | AE12: 0 | AL12: 0 | AM12: 0 | AP12: =IF(#REF!<>"",IF(AND(#REF!=#REF!,#REF!=#REF!),1,0),"") ->  | AQ12: =IF(#REF!<>"",IF(AND(#REF!=#REF!,#REF!=#REF!,#REF!=I13),1,0),"") ->  | AT12: 0 | AU12: 0 | AX12: 6 | AY12: 0 | BA12: 30 | BB12: 0 | BD12: 2 | BE12: 2 | BF12: 2 | BG12: 6 | BH12: 2 | BI12: 2 | BJ12: 2 | BK12: 6 | BL12: =IF(#REF!="","",IF(#REF!=#REF!,2,0)) ->  | BM12: =IF(#REF!="","",IF(#REF!=#REF!,2,0)) ->  | BN12: =IF(#REF!="","",IF(#REF!=#REF!,2,0)) ->  | BP12: 30 | BQ12: 2 | BR12: 2 | BS12: 2 | BT12: 2 | BU12: 2 | BV12: 2 | BW12: =IF(#REF!="","",IF(#REF!=$I12,2,0)) ->  | BX12: =IF(#REF!="","",IF(#REF!=$I12,2,0)) ->  | BY12: =IF(#REF!="","",IF(#REF!=$I12,2,0)) ->  | CD12: 6 | CE12: A | CF12: 1 | CG12: 6 | CH12: 1 | CI12: 1 | CL12: 6 | CM12: A | CN12: 1 | CO12: 6 | CP12: 1 | CQ12: 1
B13: 6 | C13: =IF(input!C13="","",input!C13) -> 1 | D13: =IF(input!D13="","",input!D13) -> 1 | E13: =IF(input!E13="","",input!E13) -> 0 | F13: =IF(input!F13="","",input!F13) -> 1 | G13: =IF(input!G13="","",input!G13) -> 1 | H13: =IF(input!H13="","",input!H13) -> 0 | I13: =IF(input!I13="","",input!I13) -> 1 | K13: x | U13: Score < | X13: 0.81 | Y13: 0.95 | Z13: 1 | AD13: 1 | AE13: 1 | AL13: 1 | AM13: 1 | AP13: =IF(#REF!<>"",IF(AND(#REF!=#REF!,#REF!=#REF!),1,0),"") ->  | AQ13: =IF(#REF!<>"",IF(AND(#REF!=#REF!,#REF!=#REF!,#REF!=I14),1,0),"") ->  | AT13: 1 | AU13: 1 | AX13: 2 | AY13: 4 | BA13: 2 | BB13: 12 | BD13: 2 | BE13: 0 | BF13: 0 | BG13: 2 | BH13: 2 | BI13: 0 | BJ13: 0 | BK13: 2 | BL13: =IF(#REF!="","",IF(#REF!=#REF!,2,0)) ->  | BM13: =IF(#REF!="","",IF(#REF!=#REF!,2,0)) ->  | BN13: =IF(#REF!="","",IF(#REF!=#REF!,2,0)) ->  | BP13: 14 | BQ13: 2 | BR13: 2 | BS13: 0 | BT13: 2 | BU13: 2 | BV13: 0 | BW13: =IF(#REF!="","",IF(#REF!=$I13,2,0)) ->  | BX13: =IF(#REF!="","",IF(#REF!=$I13,2,0)) ->  | BY13: =IF(#REF!="","",IF(#REF!=$I13,2,0)) ->  | CD13: 7 | CE13: A | CF13: 1 | CG13: 7 | CH13: 1 | CI13: 1 | CL13: 7 | CM13: A | CN13: 1 | CO13: 7 | CP13: 1 | CQ13: 1
B14: 7 | C14: =IF(input!C14="","",input!C14) -> 1 | D14: =IF(input!D14="","",input!D14) -> 1 | E14: =IF(input!E14="","",input!E14) -> 1 | F14: =IF(input!F14="","",input!F14) -> 1 | G14: =IF(input!G14="","",input!G14) -> 1 | H14: =IF(input!H14="","",input!H14) -> 1 | I14: =IF(input!I14="","",input!I14) -> 1 | K14: + | N14: Prüfer A | R14: Prüfer A | U14: Fleiss Kappa < | X14: 0.81 | Y14: 0.95 | Z14: 1 | AD14: 1 | AE14: 1 | AL14: 1 | AM14: 1 | AP14: =IF(#REF!<>"",IF(AND(#REF!=#REF!,#REF!=#REF!),1,0),"") ->  | AQ14: =IF(#REF!<>"",IF(AND(#REF!=#REF!,#REF!=#REF!,#REF!=I15),1,0),"") ->  | AT14: 1 | AU14: 1 | AX14: 0 | AY14: 6 | BA14: 0 | BB14: 30 | BD14: 2 | BE14: 2 | BF14: 2 | BG14: 6 | BH14: 2 | BI14: 2 | BJ14: 2 | BK14: 6 | BL14: =IF(#REF!="","",IF(#REF!=#REF!,2,0)) ->  | BM14: =IF(#REF!="","",IF(#REF!=#REF!,2,0)) ->  | BN14: =IF(#REF!="","",IF(#REF!=#REF!,2,0)) ->  | BP14: 30 | BQ14: 2 | BR14: 2 | BS14: 2 | BT14: 2 | BU14: 2 | BV14: 2 | BW14: =IF(#REF!="","",IF(#REF!=$I14,2,0)) ->  | BX14: =IF(#REF!="","",IF(#REF!=$I14,2,0)) ->  | BY14: =IF(#REF!="","",IF(#REF!=$I14,2,0)) ->  | CD14: 8 | CE14: A | CF14: 1 | CG14: 8 | CH14: 1 | CI14: 1 | CL14: 8 | CM14: A | CN14: 1 | CO14: 8 | CP14: 1 | CQ14: 1
B15: 8 | C15: =IF(input!C15="","",input!C15) -> 1 | D15: =IF(input!D15="","",input!D15) -> 1 | E15: =IF(input!E15="","",input!E15) -> 1 | F15: =IF(input!F15="","",input!F15) -> 1 | G15: =IF(input!G15="","",input!G15) -> 1 | H15: =IF(input!H15="","",input!H15) -> 1 | I15: =IF(input!I15="","",input!I15) -> 1 | K15: + | N15: Prüfer B | R15: Prüfer B | U15: Specifications | AD15: 1 | AE15: 1 | AL15: 1 | AM15: 1 | AP15: =IF(#REF!<>"",IF(AND(#REF!=#REF!,#REF!=#REF!),1,0),"") ->  | AQ15: =IF(#REF!<>"",IF(AND(#REF!=#REF!,#REF!=#REF!,#REF!=I16),1,0),"") ->  | AT15: 1 | AU15: 1 | AX15: 0 | AY15: 6 | BA15: 0 | BB15: 30 | BD15: 2 | BE15: 2 | BF15: 2 | BG15: 6 | BH15: 2 | BI15: 2 | BJ15: 2 | BK15: 6 | BL15: =IF(#REF!="","",IF(#REF!=#REF!,2,0)) ->  | BM15: =IF(#REF!="","",IF(#REF!=#REF!,2,0)) ->  | BN15: =IF(#REF!="","",IF(#REF!=#REF!,2,0)) ->  | BP15: 30 | BQ15: 2 | BR15: 2 | BS15: 2 | BT15: 2 | BU15: 2 | BV15: 2 | BW15: =IF(#REF!="","",IF(#REF!=$I15,2,0)) ->  | BX15: =IF(#REF!="","",IF(#REF!=$I15,2,0)) ->  | BY15: =IF(#REF!="","",IF(#REF!=$I15,2,0)) ->  | CD15: 9 | CE15: A | CF15: 1 | CG15: 9 | CH15: 0 | CI15: 0 | CL15: 9 | CM15: A | CN15: 1 | CO15: 9 | CP15: 0 | CQ15: 0
B16: 9 | C16: =IF(input!C16="","",input!C16) -> 0 | D16: =IF(input!D16="","",input!D16) -> 0 | E16: =IF(input!E16="","",input!E16) -> 0 | F16: =IF(input!F16="","",input!F16) -> 0 | G16: =IF(input!G16="","",input!G16) -> 0 | H16: =IF(input!H16="","",input!H16) -> 0 | I16: =IF(input!I16="","",input!I16) -> 0 | K16: - | N16: Prüfer C | R16: Prüfer C | U16: - LSL | AD16: 1 | AE16: 1 | AL16: 1 | AM16: 1 | AP16: =IF(#REF!<>"",IF(AND(#REF!=#REF!,#REF!=#REF!),1,0),"") ->  | AQ16: =IF(#REF!<>"",IF(AND(#REF!=#REF!,#REF!=#REF!,#REF!=I17),1,0),"") ->  | AT16: 1 | AU16: 1 | AX16: 6 | AY16: 0 | BA16: 30 | BB16: 0 | BD16: 2 | BE16: 2 | BF16: 2 | BG16: 6 | BH16: 2 | BI16: 2 | BJ16: 2 | BK16: 6 | BL16: =IF(#REF!="","",IF(#REF!=#REF!,2,0)) ->  | BM16: =IF(#REF!="","",IF(#REF!=#REF!,2,0)) ->  | BN16: =IF(#REF!="","",IF(#REF!=#REF!,2,0)) ->  | BP16: 30 | BQ16: 2 | BR16: 2 | BS16: 2 | BT16: 2 | BU16: 2 | BV16: 2 | BW16: =IF(#REF!="","",IF(#REF!=$I16,2,0)) ->  | BX16: =IF(#REF!="","",IF(#REF!=$I16,2,0)) ->  | BY16: =IF(#REF!="","",IF(#REF!=$I16,2,0)) ->  | CD16: 10 | CE16: A | CF16: 1 | CG16: 10 | CH16: 1 | CI16: 1 | CL16: 10 | CM16: A | CN16: 1 | CO16: 10 | CP16: 1 | CQ16: 1
B17: 10 | C17: =IF(input!C17="","",input!C17) -> 1 | D17: =IF(input!D17="","",input!D17) -> 1 | E17: =IF(input!E17="","",input!E17) -> 1 | F17: =IF(input!F17="","",input!F17) -> 1 | G17: =IF(input!G17="","",input!G17) -> 1 | H17: =IF(input!H17="","",input!H17) -> 1 | I17: =IF(input!I17="","",input!I17) -> 1 | K17: + | N17: Prüfdatum | U17: - USL | AD17: 1 | AE17: 1 | AL17: 1 | AM17: 1 | AP17: =IF(#REF!<>"",IF(AND(#REF!=#REF!,#REF!=#REF!),1,0),"") ->  | AQ17: =IF(#REF!<>"",IF(AND(#REF!=#REF!,#REF!=#REF!,#REF!=I18),1,0),"") ->  | AT17: 1 | AU17: 1 | AX17: 0 | AY17: 6 | BA17: 0 | BB17: 30 | BD17: 2 | BE17: 2 | BF17: 2 | BG17: 6 | BH17: 2 | BI17: 2 | BJ17: 2 | BK17: 6 | BL17: =IF(#REF!="","",IF(#REF!=#REF!,2,0)) ->  | BM17: =IF(#REF!="","",IF(#REF!=#REF!,2,0)) ->  | BN17: =IF(#REF!="","",IF(#REF!=#REF!,2,0)) ->  | BP17: 30 | BQ17: 2 | BR17: 2 | BS17: 2 | BT17: 2 | BU17: 2 | BV17: 2 | BW17: =IF(#REF!="","",IF(#REF!=$I17,2,0)) ->  | BX17: =IF(#REF!="","",IF(#REF!=$I17,2,0)) ->  | BY17: =IF(#REF!="","",IF(#REF!=$I17,2,0)) ->  | CD17: 11 | CE17: A | CF17: 1 | CG17: 11 | CH17: 1 | CI17: 1 | CL17: 11 | CM17: A | CN17: 1 | CO17: 11 | CP17: 1 | CQ17: 1
B18: 11 | C18: =IF(input!C18="","",input!C18) -> 1 | D18: =IF(input!D18="","",input!D18) -> 1 | E18: =IF(input!E18="","",input!E18) -> 1 | F18: =IF(input!F18="","",input!F18) -> 1 | G18: =IF(input!G18="","",input!G18) -> 1 | H18: =IF(input!H18="","",input!H18) -> 1 | I18: =IF(input!I18="","",input!I18) -> 1 | K18: + | N18: Prüfung durch Id | U18: Resolution | AD18: 1 | AE18: 1 | AL18: 1 | AM18: 1 | AP18: =IF(#REF!<>"",IF(AND(#REF!=#REF!,#REF!=#REF!),1,0),"") ->  | AQ18: =IF(#REF!<>"",IF(AND(#REF!=#REF!,#REF!=#REF!,#REF!=I19),1,0),"") ->  | AT18: 1 | AU18: 1 | AX18: 0 | AY18: 6 | BA18: 0 | BB18: 30 | BD18: 2 | BE18: 2 | BF18: 2 | BG18: 6 | BH18: 2 | BI18: 2 | BJ18: 2 | BK18: 6 | BL18: =IF(#REF!="","",IF(#REF!=#REF!,2,0)) ->  | BM18: =IF(#REF!="","",IF(#REF!=#REF!,2,0)) ->  | BN18: =IF(#REF!="","",IF(#REF!=#REF!,2,0)) ->  | BP18: 30 | BQ18: 2 | BR18: 2 | BS18: 2 | BT18: 2 | BU18: 2 | BV18: 2 | BW18: =IF(#REF!="","",IF(#REF!=$I18,2,0)) ->  | BX18: =IF(#REF!="","",IF(#REF!=$I18,2,0)) ->  | BY18: =IF(#REF!="","",IF(#REF!=$I18,2,0)) ->  | CD18: 12 | CE18: A | CF18: 1 | CG18: 12 | CH18: 0 | CI18: 0 | CL18: 12 | CM18: A | CN18: 1 | CO18: 12 | CP18: 0 | CQ18: 0
B19: 12 | C19: =IF(input!C19="","",input!C19) -> 0 | D19: =IF(input!D19="","",input!D19) -> 0 | E19: =IF(input!E19="","",input!E19) -> 0 | F19: =IF(input!F19="","",input!F19) -> 0 | G19: =IF(input!G19="","",input!G19) -> 0 | H19: =IF(input!H19="","",input!H19) -> 0 | I19: =IF(input!I19="","",input!I19) -> 0 | K19: - | N19: Prüfung durch Name | AD19: 1 | AE19: 1 | AL19: 1 | AM19: 1 | AP19: =IF(#REF!<>"",IF(AND(#REF!=#REF!,#REF!=#REF!),1,0),"") ->  | AQ19: =IF(#REF!<>"",IF(AND(#REF!=#REF!,#REF!=#REF!,#REF!=I20),1,0),"") ->  | AT19: 1 | AU19: 1 | AX19: 6 | AY19: 0 | BA19: 30 | BB19: 0 | BD19: 2 | BE19: 2 | BF19: 2 | BG19: 6 | BH19: 2 | BI19: 2 | BJ19: 2 | BK19: 6 | BL19: =IF(#REF!="","",IF(#REF!=#REF!,2,0)) ->  | BM19: =IF(#REF!="","",IF(#REF!=#REF!,2,0)) ->  | BN19: =IF(#REF!="","",IF(#REF!=#REF!,2,0)) ->  | BP19: 30 | BQ19: 2 | BR19: 2 | BS19: 2 | BT19: 2 | BU19: 2 | BV19: 2 | BW19: =IF(#REF!="","",IF(#REF!=$I19,2,0)) ->  | BX19: =IF(#REF!="","",IF(#REF!=$I19,2,0)) ->  | BY19: =IF(#REF!="","",IF(#REF!=$I19,2,0)) ->  | CD19: 13 | CE19: A | CF19: 1 | CG19: 13 | CH19: 1 | CI19: 1 | CL19: 13 | CM19: A | CN19: 1 | CO19: 13 | CP19: 1 | CQ19: 1
B20: 13 | C20: =IF(input!C20="","",input!C20) -> 1 | D20: =IF(input!D20="","",input!D20) -> 1 | E20: =IF(input!E20="","",input!E20) -> 1 | F20: =IF(input!F20="","",input!F20) -> 1 | G20: =IF(input!G20="","",input!G20) -> 1 | H20: =IF(input!H20="","",input!H20) -> 1 | I20: =IF(input!I20="","",input!I20) -> 1 | K20: + | AD20: 0 | AE20: 0 | AL20: 1 | AM20: 1 | AP20: =IF(#REF!<>"",IF(AND(#REF!=#REF!,#REF!=#REF!),1,0),"") ->  | AQ20: =IF(#REF!<>"",IF(AND(#REF!=#REF!,#REF!=#REF!,#REF!=I21),1,0),"") ->  | AT20: 0 | AU20: 0 | AX20: 0 | AY20: 6 | BA20: 0 | BB20: 30 | BD20: 2 | BE20: 2 | BF20: 2 | BG20: 6 | BH20: 2 | BI20: 2 | BJ20: 2 | BK20: 6 | BL20: =IF(#REF!="","",IF(#REF!=#REF!,2,0)) ->  | BM20: =IF(#REF!="","",IF(#REF!=#REF!,2,0)) ->  | BN20: =IF(#REF!="","",IF(#REF!=#REF!,2,0)) ->  | BP20: 30 | BQ20: 2 | BR20: 2 | BS20: 2 | BT20: 2 | BU20: 2 | BV20: 2 | BW20: =IF(#REF!="","",IF(#REF!=$I20,2,0)) ->  | BX20: =IF(#REF!="","",IF(#REF!=$I20,2,0)) ->  | BY20: =IF(#REF!="","",IF(#REF!=$I20,2,0)) ->  | CD20: 14 | CE20: A | CF20: 1 | CG20: 14 | CH20: 1 | CI20: 1 | CL20: 14 | CM20: A | CN20: 1 | CO20: 14 | CP20: 1 | CQ20: 1
B21: 14 | C21: =IF(input!C21="","",input!C21) -> 1 | D21: =IF(input!D21="","",input!D21) -> 1 | E21: =IF(input!E21="","",input!E21) -> 0 | F21: =IF(input!F21="","",input!F21) -> 1 | G21: =IF(input!G21="","",input!G21) -> 1 | H21: =IF(input!H21="","",input!H21) -> 1 | I21: =IF(input!I21="","",input!I21) -> 1 | K21: x | N21: Anzahl Durchgänge | R21: =IF(C8<>"",COUNT(C8:E8),"") -> 3 | AD21: 1 | AE21: 1 | AL21: 1 | AM21: 1 | AP21: =IF(#REF!<>"",IF(AND(#REF!=#REF!,#REF!=#REF!),1,0),"") ->  | AQ21: =IF(#REF!<>"",IF(AND(#REF!=#REF!,#REF!=#REF!,#REF!=I22),1,0),"") ->  | AT21: 1 | AU21: 1 | AX21: 1 | AY21: 5 | BA21: 0 | BB21: 20 | BD21: 2 | BE21: 0 | BF21: 0 | BG21: 2 | BH21: 2 | BI21: 2 | BJ21: 2 | BK21: 6 | BL21: =IF(#REF!="","",IF(#REF!=#REF!,2,0)) ->  | BM21: =IF(#REF!="","",IF(#REF!=#REF!,2,0)) ->  | BN21: =IF(#REF!="","",IF(#REF!=#REF!,2,0)) ->  | BP21: 20 | BQ21: 2 | BR21: 2 | BS21: 0 | BT21: 2 | BU21: 2 | BV21: 2 | BW21: =IF(#REF!="","",IF(#REF!=$I21,2,0)) ->  | BX21: =IF(#REF!="","",IF(#REF!=$I21,2,0)) ->  | BY21: =IF(#REF!="","",IF(#REF!=$I21,2,0)) ->  | CD21: 15 | CE21: A | CF21: 1 | CG21: 15 | CH21: 1 | CI21: 1 | CL21: 15 | CM21: A | CN21: 1 | CO21: 15 | CP21: 1 | CQ21: 1
B22: 15 | C22: =IF(input!C22="","",input!C22) -> 1 | D22: =IF(input!D22="","",input!D22) -> 1 | E22: =IF(input!E22="","",input!E22) -> 1 | F22: =IF(input!F22="","",input!F22) -> 1 | G22: =IF(input!G22="","",input!G22) -> 1 | H22: =IF(input!H22="","",input!H22) -> 1 | I22: =IF(input!I22="","",input!I22) -> 1 | K22: + | N22: Anzahl Teile | R22: =IF(C8<>"",COUNT(C8:C57),"") -> 36 | AD22: 1 | AE22: 1 | AL22: 1 | AM22: 1 | AP22: =IF(#REF!<>"",IF(AND(#REF!=#REF!,#REF!=#REF!),1,0),"") ->  | AQ22: =IF(#REF!<>"",IF(AND(#REF!=#REF!,#REF!=#REF!,#REF!=I23),1,0),"") ->  | AT22: 1 | AU22: 1 | AX22: 0 | AY22: 6 | BA22: 0 | BB22: 30 | BD22: 2 | BE22: 2 | BF22: 2 | BG22: 6 | BH22: 2 | BI22: 2 | BJ22: 2 | BK22: 6 | BL22: =IF(#REF!="","",IF(#REF!=#REF!,2,0)) ->  | BM22: =IF(#REF!="","",IF(#REF!=#REF!,2,0)) ->  | BN22: =IF(#REF!="","",IF(#REF!=#REF!,2,0)) ->  | BP22: 30 | BQ22: 2 | BR22: 2 | BS22: 2 | BT22: 2 | BU22: 2 | BV22: 2 | BW22: =IF(#REF!="","",IF(#REF!=$I22,2,0)) ->  | BX22: =IF(#REF!="","",IF(#REF!=$I22,2,0)) ->  | BY22: =IF(#REF!="","",IF(#REF!=$I22,2,0)) ->  | CD22: 16 | CE22: A | CF22: 1 | CG22: 16 | CH22: 1 | CI22: 1 | CL22: 16 | CM22: A | CN22: 1 | CO22: 16 | CP22: 1 | CQ22: 1
B23: 16 | C23: =IF(input!C23="","",input!C23) -> 1 | D23: =IF(input!D23="","",input!D23) -> 1 | E23: =IF(input!E23="","",input!E23) -> 1 | F23: =IF(input!F23="","",input!F23) -> 1 | G23: =IF(input!G23="","",input!G23) -> 1 | H23: =IF(input!H23="","",input!H23) -> 1 | I23: =IF(input!I23="","",input!I23) -> 1 | K23: + | N23: Anzahl of Prüfer | R23: =IF(C8<>"",COUNT(C8,F8,#REF!),"") -> 2 | AD23: 1 | AE23: 1 | AL23: 1 | AM23: 1 | AP23: =IF(#REF!<>"",IF(AND(#REF!=#REF!,#REF!=#REF!),1,0),"") ->  | AQ23: =IF(#REF!<>"",IF(AND(#REF!=#REF!,#REF!=#REF!,#REF!=I24),1,0),"") ->  | AT23: 1 | AU23: 1 | AX23: 0 | AY23: 6 | BA23: 0 | BB23: 30 | BD23: 2 | BE23: 2 | BF23: 2 | BG23: 6 | BH23: 2 | BI23: 2 | BJ23: 2 | BK23: 6 | BL23: =IF(#REF!="","",IF(#REF!=#REF!,2,0)) ->  | BM23: =IF(#REF!="","",IF(#REF!=#REF!,2,0)) ->  | BN23: =IF(#REF!="","",IF(#REF!=#REF!,2,0)) ->  | BP23: 30 | BQ23: 2 | BR23: 2 | BS23: 2 | BT23: 2 | BU23: 2 | BV23: 2 | BW23: =IF(#REF!="","",IF(#REF!=$I23,2,0)) ->  | BX23: =IF(#REF!="","",IF(#REF!=$I23,2,0)) ->  | BY23: =IF(#REF!="","",IF(#REF!=$I23,2,0)) ->  | CD23: 17 | CE23: A | CF23: 1 | CG23: 17 | CH23: 1 | CI23: 1 | CL23: 17 | CM23: A | CN23: 1 | CO23: 17 | CP23: 1 | CQ23: 1
B24: 17 | C24: =IF(input!C24="","",input!C24) -> 1 | D24: =IF(input!D24="","",input!D24) -> 1 | E24: =IF(input!E24="","",input!E24) -> 1 | F24: =IF(input!F24="","",input!F24) -> 1 | G24: =IF(input!G24="","",input!G24) -> 1 | H24: =IF(input!H24="","",input!H24) -> 1 | I24: =IF(input!I24="","",input!I24) -> 1 | K24: + | AD24: 1 | AE24: 1 | AL24: 1 | AM24: 1 | AP24: =IF(#REF!<>"",IF(AND(#REF!=#REF!,#REF!=#REF!),1,0),"") ->  | AQ24: =IF(#REF!<>"",IF(AND(#REF!=#REF!,#REF!=#REF!,#REF!=I25),1,0),"") ->  | AT24: 1 | AU24: 1 | AX24: 0 | AY24: 6 | BA24: 0 | BB24: 30 | BD24: 2 | BE24: 2 | BF24: 2 | BG24: 6 | BH24: 2 | BI24: 2 | BJ24: 2 | BK24: 6 | BL24: =IF(#REF!="","",IF(#REF!=#REF!,2,0)) ->  | BM24: =IF(#REF!="","",IF(#REF!=#REF!,2,0)) ->  | BN24: =IF(#REF!="","",IF(#REF!=#REF!,2,0)) ->  | BP24: 30 | BQ24: 2 | BR24: 2 | BS24: 2 | BT24: 2 | BU24: 2 | BV24: 2 | BW24: =IF(#REF!="","",IF(#REF!=$I24,2,0)) ->  | BX24: =IF(#REF!="","",IF(#REF!=$I24,2,0)) ->  | BY24: =IF(#REF!="","",IF(#REF!=$I24,2,0)) ->  | CD24: 18 | CE24: A | CF24: 1 | CG24: 18 | CH24: 1 | CI24: 1 | CL24: 18 | CM24: A | CN24: 1 | CO24: 18 | CP24: 1 | CQ24: 1
B25: 18 | C25: =IF(input!C25="","",input!C25) -> 1 | D25: =IF(input!D25="","",input!D25) -> 1 | E25: =IF(input!E25="","",input!E25) -> 1 | F25: =IF(input!F25="","",input!F25) -> 1 | G25: =IF(input!G25="","",input!G25) -> 1 | H25: =IF(input!H25="","",input!H25) -> 1 | I25: =IF(input!I25="","",input!I25) -> 1 | K25: + | M25: Prüfer | AD25: 1 | AE25: 1 | AL25: 1 | AM25: 1 | AP25: =IF(#REF!<>"",IF(AND(#REF!=#REF!,#REF!=#REF!),1,0),"") ->  | AQ25: =IF(#REF!<>"",IF(AND(#REF!=#REF!,#REF!=#REF!,#REF!=I26),1,0),"") ->  | AT25: 1 | AU25: 1 | AX25: 0 | AY25: 6 | BA25: 0 | BB25: 30 | BD25: 2 | BE25: 2 | BF25: 2 | BG25: 6 | BH25: 2 | BI25: 2 | BJ25: 2 | BK25: 6 | BL25: =IF(#REF!="","",IF(#REF!=#REF!,2,0)) ->  | BM25: =IF(#REF!="","",IF(#REF!=#REF!,2,0)) ->  | BN25: =IF(#REF!="","",IF(#REF!=#REF!,2,0)) ->  | BP25: 30 | BQ25: 2 | BR25: 2 | BS25: 2 | BT25: 2 | BU25: 2 | BV25: 2 | BW25: =IF(#REF!="","",IF(#REF!=$I25,2,0)) ->  | BX25: =IF(#REF!="","",IF(#REF!=$I25,2,0)) ->  | BY25: =IF(#REF!="","",IF(#REF!=$I25,2,0)) ->  | CD25: 19 | CE25: A | CF25: 1 | CG25: 19 | CH25: 1 | CI25: 1 | CL25: 19 | CM25: A | CN25: 1 | CO25: 19 | CP25: 1 | CQ25: 1
B26: 19 | C26: =IF(input!C26="","",input!C26) -> 1 | D26: =IF(input!D26="","",input!D26) -> 1 | E26: =IF(input!E26="","",input!E26) -> 1 | F26: =IF(input!F26="","",input!F26) -> 1 | G26: =IF(input!G26="","",input!G26) -> 1 | H26: =IF(input!H26="","",input!H26) -> 1 | I26: =IF(input!I26="","",input!I26) -> 1 | K26: + | P26: Innerhalb Prüfer | V26: Zwischen | AD26: 1 | AE26: 1 | AL26: 1 | AM26: 1 | AP26: =IF(#REF!<>"",IF(AND(#REF!=#REF!,#REF!=#REF!),1,0),"") ->  | AQ26: =IF(#REF!<>"",IF(AND(#REF!=#REF!,#REF!=#REF!,#REF!=I27),1,0),"") ->  | AT26: 1 | AU26: 1 | AX26: 0 | AY26: 6 | BA26: 0 | BB26: 30 | BD26: 2 | BE26: 2 | BF26: 2 | BG26: 6 | BH26: 2 | BI26: 2 | BJ26: 2 | BK26: 6 | BL26: =IF(#REF!="","",IF(#REF!=#REF!,2,0)) ->  | BM26: =IF(#REF!="","",IF(#REF!=#REF!,2,0)) ->  | BN26: =IF(#REF!="","",IF(#REF!=#REF!,2,0)) ->  | BP26: 30 | BQ26: 2 | BR26: 2 | BS26: 2 | BT26: 2 | BU26: 2 | BV26: 2 | BW26: =IF(#REF!="","",IF(#REF!=$I26,2,0)) ->  | BX26: =IF(#REF!="","",IF(#REF!=$I26,2,0)) ->  | BY26: =IF(#REF!="","",IF(#REF!=$I26,2,0)) ->  | CD26: 20 | CE26: A | CF26: 1 | CG26: 20 | CH26: 1 | CI26: 1 | CL26: 20 | CM26: A | CN26: 1 | CO26: 20 | CP26: 1 | CQ26: 1
B27: 20 | C27: =IF(input!C27="","",input!C27) -> 1 | D27: =IF(input!D27="","",input!D27) -> 1 | E27: =IF(input!E27="","",input!E27) -> 1 | F27: =IF(input!F27="","",input!F27) -> 1 | G27: =IF(input!G27="","",input!G27) -> 1 | H27: =IF(input!H27="","",input!H27) -> 1 | I27: =IF(input!I27="","",input!I27) -> 1 | K27: + | P27: =R14 -> Prüfer A | R27: =R15 -> Prüfer B | T27: =R16 -> Prüfer C | V27: Prüfer | AD27: 0 | AE27: 0 | AL27: 0 | AM27: 0 | AP27: =IF(#REF!<>"",IF(AND(#REF!=#REF!,#REF!=#REF!),1,0),"") ->  | AQ27: =IF(#REF!<>"",IF(AND(#REF!=#REF!,#REF!=#REF!,#REF!=I28),1,0),"") ->  | AT27: 0 | AU27: 0 | AX27: 0 | AY27: 6 | BA27: 0 | BB27: 30 | BD27: 2 | BE27: 2 | BF27: 2 | BG27: 6 | BH27: 2 | BI27: 2 | BJ27: 2 | BK27: 6 | BL27: =IF(#REF!="","",IF(#REF!=#REF!,2,0)) ->  | BM27: =IF(#REF!="","",IF(#REF!=#REF!,2,0)) ->  | BN27: =IF(#REF!="","",IF(#REF!=#REF!,2,0)) ->  | BP27: 30 | BQ27: 2 | BR27: 2 | BS27: 2 | BT27: 2 | BU27: 2 | BV27: 2 | BW27: =IF(#REF!="","",IF(#REF!=$I27,2,0)) ->  | BX27: =IF(#REF!="","",IF(#REF!=$I27,2,0)) ->  | BY27: =IF(#REF!="","",IF(#REF!=$I27,2,0)) ->  | CD27: 21 | CE27: A | CF27: 1 | CG27: 21 | CH27: 1 | CI27: 1 | CL27: 21 | CM27: A | CN27: 1 | CO27: 21 | CP27: 1 | CQ27: 1
B28: 21 | C28: =IF(input!C28="","",input!C28) -> 1 | D28: =IF(input!D28="","",input!D28) -> 1 | E28: =IF(input!E28="","",input!E28) -> 0 | F28: =IF(input!F28="","",input!F28) -> 1 | G28: =IF(input!G28="","",input!G28) -> 0 | H28: =IF(input!H28="","",input!H28) -> 1 | I28: =IF(input!I28="","",input!I28) -> 1 | K28: x | M28: Geprüft gesamt | P28: =IF(C8<>"",COUNT(C8:C57),"") -> 36 | R28: =IF(F8<>"",COUNT(F8:F57),"") -> 36 | T28: =IF(#REF!<>"",COUNT(#REF!),"") ->  | V28: =P28 -> 36 | AD28: 0 | AE28: 0 | AL28: 0 | AM28: 0 | AP28: =IF(#REF!<>"",IF(AND(#REF!=#REF!,#REF!=#REF!),1,0),"") ->  | AQ28: =IF(#REF!<>"",IF(AND(#REF!=#REF!,#REF!=#REF!,#REF!=I29),1,0),"") ->  | AT28: 0 | AU28: 0 | AX28: 2 | AY28: 4 | BA28: 2 | BB28: 12 | BD28: 2 | BE28: 0 | BF28: 0 | BG28: 2 | BH28: 0 | BI28: 2 | BJ28: 0 | BK28: 2 | BL28: =IF(#REF!="","",IF(#REF!=#REF!,2,0)) ->  | BM28: =IF(#REF!="","",IF(#REF!=#REF!,2,0)) ->  | BN28: =IF(#REF!="","",IF(#REF!=#REF!,2,0)) ->  | BP28: 14 | BQ28: 2 | BR28: 2 | BS28: 0 | BT28: 2 | BU28: 0 | BV28: 2 | BW28: =IF(#REF!="","",IF(#REF!=$I28,2,0)) ->  | BX28: =IF(#REF!="","",IF(#REF!=$I28,2,0)) ->  | BY28: =IF(#REF!="","",IF(#REF!=$I28,2,0)) ->  | CD28: 22 | CE28: A | CF28: 1 | CG28: 22 | CH28: 0 | CI28: 0 | CL28: 22 | CM28: A | CN28: 1 | CO28: 22 | CP28: 0 | CQ28: 0
B29: 22 | C29: =IF(input!C29="","",input!C29) -> 0 | D29: =IF(input!D29="","",input!D29) -> 0 | E29: =IF(input!E29="","",input!E29) -> 1 | F29: =IF(input!F29="","",input!F29) -> 0 | G29: =IF(input!G29="","",input!G29) -> 1 | H29: =IF(input!H29="","",input!H29) -> 0 | I29: =IF(input!I29="","",input!I29) -> 0 | K29: x | M29: # Matched | P29: =IF(C8<>"",SUM(AD7:AD56),"") -> 29 | R29: =IF(F8<>"",SUM(AL7:AL56),"") -> 31 | T29: =IF(#REF!<>"",SUM(AP7:AP56),"") ->  | V29: =IF(P28<>"",SUM(AT7:AT56),"") -> 28 | AD29: 1 | AE29: 1 | AL29: 1 | AM29: 1 | AP29: =IF(#REF!<>"",IF(AND(#REF!=#REF!,#REF!=#REF!),1,0),"") ->  | AQ29: =IF(#REF!<>"",IF(AND(#REF!=#REF!,#REF!=#REF!,#REF!=I30),1,0),"") ->  | AT29: 1 | AU29: 1 | AX29: 4 | AY29: 2 | BA29: 12 | BB29: 2 | BD29: 2 | BE29: 0 | BF29: 0 | BG29: 2 | BH29: 0 | BI29: 2 | BJ29: 0 | BK29: 2 | BL29: =IF(#REF!="","",IF(#REF!=#REF!,2,0)) ->  | BM29: =IF(#REF!="","",IF(#REF!=#REF!,2,0)) ->  | BN29: =IF(#REF!="","",IF(#REF!=#REF!,2,0)) ->  | BP29: 14 | BQ29: 2 | BR29: 2 | BS29: 0 | BT29: 2 | BU29: 0 | BV29: 2 | BW29: =IF(#REF!="","",IF(#REF!=$I29,2,0)) ->  | BX29: =IF(#REF!="","",IF(#REF!=$I29,2,0)) ->  | BY29: =IF(#REF!="","",IF(#REF!=$I29,2,0)) ->  | CD29: 23 | CE29: A | CF29: 1 | CG29: 23 | CH29: 1 | CI29: 1 | CL29: 23 | CM29: A | CN29: 1 | CO29: 23 | CP29: 1 | CQ29: 1
B30: 23 | C30: =IF(input!C30="","",input!C30) -> 1 | D30: =IF(input!D30="","",input!D30) -> 1 | E30: =IF(input!E30="","",input!E30) -> 1 | F30: =IF(input!F30="","",input!F30) -> 1 | G30: =IF(input!G30="","",input!G30) -> 1 | H30: =IF(input!H30="","",input!H30) -> 1 | I30: =IF(input!I30="","",input!I30) -> 1 | K30: + | M30: 95% upper CI | P30: =IF(P29<>"",IF(P28=P29,1,(2*(P29+1)*FINV(0.025,2*(P29+1),2*(P28-P29)))/(2*(P28-P29)+2*(P29+1)*FINV(0.025,2*(P29+1),2*(P28-P29)))),"") -> 0.9180563602 | R30: =IF(R29<>"",IF(R28=R29,1,(2*(R29+1)*FINV(0.025,2*(R29+1),2*(R28-R29)))/(2*(R28-R29)+2*(R29+1)*FINV(0.025,2*(R29+1),2*(R28-R29)))),"") -> 0.9533223394 | T30: =IF(T29<>"",IF(T28=T29,1,(2*(T29+1)*FINV(0.025,2*(T29+1),2*(T28-T29)))/(2*(T28-T29)+2*(T29+1)*FINV(0.025,2*(T29+1),2*(T28-T29)))),"") ->  | V30: =IF(V29<>"",IF(V28=V29,1,(2*(V29+1)*FINV(0.025,2*(V29+1),2*(V28-V29)))/(2*(V28-V29)+2*(V29+1)*FINV(0.025,2*(V29+1),2*(V28-V29)))),"") -> 0.8988494697 | AD30: 1 | AE30: 1 | AL30: 1 | AM30: 1 | AP30: =IF(#REF!<>"",IF(AND(#REF!=#REF!,#REF!=#REF!),1,0),"") ->  | AQ30: =IF(#REF!<>"",IF(AND(#REF!=#REF!,#REF!=#REF!,#REF!=I31),1,0),"") ->  | AT30: 1 | AU30: 1 | AX30: 0 | AY30: 6 | BA30: 0 | BB30: 30 | BD30: 2 | BE30: 2 | BF30: 2 | BG30: 6 | BH30: 2 | BI30: 2 | BJ30: 2 | BK30: 6 | BL30: =IF(#REF!="","",IF(#REF!=#REF!,2,0)) ->  | BM30: =IF(#REF!="","",IF(#REF!=#REF!,2,0)) ->  | BN30: =IF(#REF!="","",IF(#REF!=#REF!,2,0)) ->  | BP30: 30 | BQ30: 2 | BR30: 2 | BS30: 2 | BT30: 2 | BU30: 2 | BV30: 2 | BW30: =IF(#REF!="","",IF(#REF!=$I30,2,0)) ->  | BX30: =IF(#REF!="","",IF(#REF!=$I30,2,0)) ->  | BY30: =IF(#REF!="","",IF(#REF!=$I30,2,0)) ->  | CD30: 24 | CE30: A | CF30: 1 | CG30: 24 | CH30: 1 | CI30: 1 | CL30: 24 | CM30: A | CN30: 1 | CO30: 24 | CP30: 1 | CQ30: 1
B31: 24 | C31: =IF(input!C31="","",input!C31) -> 1 | D31: =IF(input!D31="","",input!D31) -> 1 | E31: =IF(input!E31="","",input!E31) -> 1 | F31: =IF(input!F31="","",input!F31) -> 1 | G31: =IF(input!G31="","",input!G31) -> 1 | H31: =IF(input!H31="","",input!H31) -> 1 | I31: =IF(input!I31="","",input!I31) -> 1 | K31: + | M31: Ergebnis | P31: =IF(P28<>"",(P29/P28)/AG3,"") ->  | R31: =IF(R28<>"",(R29/R28)/AG3,"") ->  | T31: =IF(T28<>"",(T29/T28)/AG3,"") ->  | V31: =IF(V28<>"",V29/V28,"") -> 0.7777777778 | AD31: 1 | AE31: 1 | AL31: 1 | AM31: 1 | AP31: =IF(#REF!<>"",IF(AND(#REF!=#REF!,#REF!=#REF!),1,0),"") ->  | AQ31: =IF(#REF!<>"",IF(AND(#REF!=#REF!,#REF!=#REF!,#REF!=I32),1,0),"") ->  | AT31: 1 | AU31: 1 | AX31: 0 | AY31: 6 | BA31: 0 | BB31: 30 | BD31: 2 | BE31: 2 | BF31: 2 | BG31: 6 | BH31: 2 | BI31: 2 | BJ31: 2 | BK31: 6 | BL31: =IF(#REF!="","",IF(#REF!=#REF!,2,0)) ->  | BM31: =IF(#REF!="","",IF(#REF!=#REF!,2,0)) ->  | BN31: =IF(#REF!="","",IF(#REF!=#REF!,2,0)) ->  | BP31: 30 | BQ31: 2 | BR31: 2 | BS31: 2 | BT31: 2 | BU31: 2 | BV31: 2 | BW31: =IF(#REF!="","",IF(#REF!=$I31,2,0)) ->  | BX31: =IF(#REF!="","",IF(#REF!=$I31,2,0)) ->  | BY31: =IF(#REF!="","",IF(#REF!=$I31,2,0)) ->  | CD31: 25 | CE31: A | CF31: 1 | CG31: 25 | CH31: 0 | CI31: 0 | CL31: 25 | CM31: A | CN31: 1 | CO31: 25 | CP31: 0 | CQ31: 0
B32: 25 | C32: =IF(input!C32="","",input!C32) -> 0 | D32: =IF(input!D32="","",input!D32) -> 0 | E32: =IF(input!E32="","",input!E32) -> 0 | F32: =IF(input!F32="","",input!F32) -> 0 | G32: =IF(input!G32="","",input!G32) -> 0 | H32: =IF(input!H32="","",input!H32) -> 0 | I32: =IF(input!I32="","",input!I32) -> 0 | K32: - | M32: 95% lower CI | P32: =IF(P29<>"",IF(P29=0,0,(2*P29*FINV(0.975,2*P29,2*(P28-P29+1)))/(2*(P28-P29+1)+2*P29*FINV(0.975,2*P29,2*(P28-P29+1)))),"") -> 0.6397519838 | R32: =IF(R29<>"",IF(P29=0,0,(2*R29*FINV(0.975,2*R29,2*(R28-R29+1)))/(2*(R28-R29+1)+2*R29*FINV(0.975,2*R29,2*(R28-R29+1)))),"") -> 0.7050250519 | T32: =IF(T29<>"",IF(P29=0,0,(2*T29*FINV(0.975,2*T29,2*(T28-T29+1)))/(2*(T28-T29+1)+2*T29*FINV(0.975,2*T29,2*(T28-T29+1)))),"") ->  | V32: =IF(V29<>"",IF(P29=0,0,(2*V29*FINV(0.975,2*V29,2*(V28-V29+1)))/(2*(V28-V29+1)+2*V29*FINV(0.975,2*V29,2*(V28-V29+1)))),"") -> 0.6084823508 | AD32: 0 | AE32: 0 | AL32: 1 | AM32: 1 | AP32: =IF(#REF!<>"",IF(AND(#REF!=#REF!,#REF!=#REF!),1,0),"") ->  | AQ32: =IF(#REF!<>"",IF(AND(#REF!=#REF!,#REF!=#REF!,#REF!=I33),1,0),"") ->  | AT32: 0 | AU32: 0 | AX32: 6 | AY32: 0 | BA32: 30 | BB32: 0 | BD32: 2 | BE32: 2 | BF32: 2 | BG32: 6 | BH32: 2 | BI32: 2 | BJ32: 2 | BK32: 6 | BL32: =IF(#REF!="","",IF(#REF!=#REF!,2,0)) ->  | BM32: =IF(#REF!="","",IF(#REF!=#REF!,2,0)) ->  | BN32: =IF(#REF!="","",IF(#REF!=#REF!,2,0)) ->  | BP32: 30 | BQ32: 2 | BR32: 2 | BS32: 2 | BT32: 2 | BU32: 2 | BV32: 2 | BW32: =IF(#REF!="","",IF(#REF!=$I32,2,0)) ->  | BX32: =IF(#REF!="","",IF(#REF!=$I32,2,0)) ->  | BY32: =IF(#REF!="","",IF(#REF!=$I32,2,0)) ->  | CD32: 26 | CE32: A | CF32: 1 | CG32: 26 | CH32: 0 | CI32: 0 | CL32: 26 | CM32: A | CN32: 1 | CO32: 26 | CP32: 0 | CQ32: 0
B33: 26 | C33: =IF(input!C33="","",input!C33) -> 0 | D33: =IF(input!D33="","",input!D33) -> 1 | E33: =IF(input!E33="","",input!E33) -> 0 | F33: =IF(input!F33="","",input!F33) -> 0 | G33: =IF(input!G33="","",input!G33) -> 0 | H33: =IF(input!H33="","",input!H33) -> 0 | I33: =IF(input!I33="","",input!I33) -> 0 | K33: x | M33: Fleiss Kappa | P33: =BG73/AG3 ->  | R33: =BK73/AG3 ->  | T33: =BO73/AG3 ->  | V33: =BP73 -> 0.76 | AD33: 1 | AE33: 1 | AL33: 1 | AM33: 1 | AP33: =IF(#REF!<>"",IF(AND(#REF!=#REF!,#REF!=#REF!),1,0),"") ->  | AQ33: =IF(#REF!<>"",IF(AND(#REF!=#REF!,#REF!=#REF!,#REF!=I34),1,0),"") ->  | AT33: 1 | AU33: 1 | AX33: 5 | AY33: 1 | BA33: 20 | BB33: 0 | BD33: 0 | BE33: 2 | BF33: 0 | BG33: 2 | BH33: 2 | BI33: 2 | BJ33: 2 | BK33: 6 | BL33: =IF(#REF!="","",IF(#REF!=#REF!,2,0)) ->  | BM33: =IF(#REF!="","",IF(#REF!=#REF!,2,0)) ->  | BN33: =IF(#REF!="","",IF(#REF!=#REF!,2,0)) ->  | BP33: 20 | BQ33: 2 | BR33: 0 | BS33: 2 | BT33: 2 | BU33: 2 | BV33: 2 | BW33: =IF(#REF!="","",IF(#REF!=$I33,2,0)) ->  | BX33: =IF(#REF!="","",IF(#REF!=$I33,2,0)) ->  | BY33: =IF(#REF!="","",IF(#REF!=$I33,2,0)) ->  | CD33: 27 | CE33: A | CF33: 1 | CG33: 27 | CH33: 1 | CI33: 1 | CL33: 27 | CM33: A | CN33: 1 | CO33: 27 | CP33: 1 | CQ33: 1
B34: 27 | C34: =IF(input!C34="","",input!C34) -> 1 | D34: =IF(input!D34="","",input!D34) -> 1 | E34: =IF(input!E34="","",input!E34) -> 1 | F34: =IF(input!F34="","",input!F34) -> 1 | G34: =IF(input!G34="","",input!G34) -> 1 | H34: =IF(input!H34="","",input!H34) -> 1 | I34: =IF(input!I34="","",input!I34) -> 1 | K34: + | AD34: 1 | AE34: 1 | AL34: 1 | AM34: 1 | AP34: =IF(#REF!<>"",IF(AND(#REF!=#REF!,#REF!=#REF!),1,0),"") ->  | AQ34: =IF(#REF!<>"",IF(AND(#REF!=#REF!,#REF!=#REF!,#REF!=I35),1,0),"") ->  | AT34: 1 | AU34: 1 | AX34: 0 | AY34: 6 | BA34: 0 | BB34: 30 | BD34: 2 | BE34: 2 | BF34: 2 | BG34: 6 | BH34: 2 | BI34: 2 | BJ34: 2 | BK34: 6 | BL34: =IF(#REF!="","",IF(#REF!=#REF!,2,0)) ->  | BM34: =IF(#REF!="","",IF(#REF!=#REF!,2,0)) ->  | BN34: =IF(#REF!="","",IF(#REF!=#REF!,2,0)) ->  | BP34: 30 | BQ34: 2 | BR34: 2 | BS34: 2 | BT34: 2 | BU34: 2 | BV34: 2 | BW34: =IF(#REF!="","",IF(#REF!=$I34,2,0)) ->  | BX34: =IF(#REF!="","",IF(#REF!=$I34,2,0)) ->  | BY34: =IF(#REF!="","",IF(#REF!=$I34,2,0)) ->  | CD34: 28 | CE34: A | CF34: 1 | CG34: 28 | CH34: 1 | CI34: 1 | CL34: 28 | CM34: A | CN34: 1 | CO34: 28 | CP34: 1 | CQ34: 1
B35: 28 | C35: =IF(input!C35="","",input!C35) -> 1 | D35: =IF(input!D35="","",input!D35) -> 1 | E35: =IF(input!E35="","",input!E35) -> 1 | F35: =IF(input!F35="","",input!F35) -> 1 | G35: =IF(input!G35="","",input!G35) -> 1 | H35: =IF(input!H35="","",input!H35) -> 1 | I35: =IF(input!I35="","",input!I35) -> 1 | K35: + | M35: Prüfer vs. Standard | AD35: 1 | AE35: 1 | AL35: 1 | AM35: 1 | AP35: =IF(#REF!<>"",IF(AND(#REF!=#REF!,#REF!=#REF!),1,0),"") ->  | AQ35: =IF(#REF!<>"",IF(AND(#REF!=#REF!,#REF!=#REF!,#REF!=I36),1,0),"") ->  | AT35: 1 | AU35: 1 | AX35: 0 | AY35: 6 | BA35: 0 | BB35: 30 | BD35: 2 | BE35: 2 | BF35: 2 | BG35: 6 | BH35: 2 | BI35: 2 | BJ35: 2 | BK35: 6 | BL35: =IF(#REF!="","",IF(#REF!=#REF!,2,0)) ->  | BM35: =IF(#REF!="","",IF(#REF!=#REF!,2,0)) ->  | BN35: =IF(#REF!="","",IF(#REF!=#REF!,2,0)) ->  | BP35: 30 | BQ35: 2 | BR35: 2 | BS35: 2 | BT35: 2 | BU35: 2 | BV35: 2 | BW35: =IF(#REF!="","",IF(#REF!=$I35,2,0)) ->  | BX35: =IF(#REF!="","",IF(#REF!=$I35,2,0)) ->  | BY35: =IF(#REF!="","",IF(#REF!=$I35,2,0)) ->  | CD35: 29 | CE35: A | CF35: 1 | CG35: 29 | CH35: 1 | CI35: 1 | CL35: 29 | CM35: A | CN35: 1 | CO35: 29 | CP35: 1 | CQ35: 1
B36: 29 | C36: =IF(input!C36="","",input!C36) -> 1 | D36: =IF(input!D36="","",input!D36) -> 1 | E36: =IF(input!E36="","",input!E36) -> 1 | F36: =IF(input!F36="","",input!F36) -> 1 | G36: =IF(input!G36="","",input!G36) -> 1 | H36: =IF(input!H36="","",input!H36) -> 1 | I36: =IF(input!I36="","",input!I36) -> 1 | K36: + | M36: Source | P36: Einzelne Prüfer vs. Standard | V36: Alle Prüfer vs. Standard | AD36: 1 | AE36: 1 | AL36: 0 | AM36: 0 | AP36: =IF(#REF!<>"",IF(AND(#REF!=#REF!,#REF!=#REF!),1,0),"") ->  | AQ36: =IF(#REF!<>"",IF(AND(#REF!=#REF!,#REF!=#REF!,#REF!=I37),1,0),"") ->  | AT36: 0 | AU36: 0 | AX36: 0 | AY36: 6 | BA36: 0 | BB36: 30 | BD36: 2 | BE36: 2 | BF36: 2 | BG36: 6 | BH36: 2 | BI36: 2 | BJ36: 2 | BK36: 6 | BL36: =IF(#REF!="","",IF(#REF!=#REF!,2,0)) ->  | BM36: =IF(#REF!="","",IF(#REF!=#REF!,2,0)) ->  | BN36: =IF(#REF!="","",IF(#REF!=#REF!,2,0)) ->  | BP36: 30 | BQ36: 2 | BR36: 2 | BS36: 2 | BT36: 2 | BU36: 2 | BV36: 2 | BW36: =IF(#REF!="","",IF(#REF!=$I36,2,0)) ->  | BX36: =IF(#REF!="","",IF(#REF!=$I36,2,0)) ->  | BY36: =IF(#REF!="","",IF(#REF!=$I36,2,0)) ->  | CD36: 30 | CE36: A | CF36: 1 | CG36: 30 | CH36: 0 | CI36: 0 | CL36: 30 | CM36: A | CN36: 1 | CO36: 30 | CP36: 0 | CQ36: 0
B37: 30 | C37: =IF(input!C37="","",input!C37) -> 0 | D37: =IF(input!D37="","",input!D37) -> 0 | E37: =IF(input!E37="","",input!E37) -> 0 | F37: =IF(input!F37="","",input!F37) -> 0 | G37: =IF(input!G37="","",input!G37) -> 0 | H37: =IF(input!H37="","",input!H37) -> 1 | I37: =IF(input!I37="","",input!I37) -> 0 | K37: x | P37: =P27 -> Prüfer A | R37: =R27 -> Prüfer B | T37: =T27 -> Prüfer C | AD37: 1 | AE37: 1 | AL37: 1 | AM37: 1 | AP37: =IF(#REF!<>"",IF(AND(#REF!=#REF!,#REF!=#REF!),1,0),"") ->  | AQ37: =IF(#REF!<>"",IF(AND(#REF!=#REF!,#REF!=#REF!,#REF!=I38),1,0),"") ->  | AT37: 1 | AU37: 1 | AX37: 5 | AY37: 1 | BA37: 20 | BB37: 0 | BD37: 2 | BE37: 2 | BF37: 2 | BG37: 6 | BH37: 2 | BI37: 0 | BJ37: 0 | BK37: 2 | BL37: =IF(#REF!="","",IF(#REF!=#REF!,2,0)) ->  | BM37: =IF(#REF!="","",IF(#REF!=#REF!,2,0)) ->  | BN37: =IF(#REF!="","",IF(#REF!=#REF!,2,0)) ->  | BP37: 20 | BQ37: 2 | BR37: 2 | BS37: 2 | BT37: 2 | BU37: 2 | BV37: 0 | BW37: =IF(#REF!="","",IF(#REF!=$I37,2,0)) ->  | BX37: =IF(#REF!="","",IF(#REF!=$I37,2,0)) ->  | BY37: =IF(#REF!="","",IF(#REF!=$I37,2,0)) ->  | CD37: 31 | CE37: A | CF37: 1 | CG37: 31 | CH37: 1 | CI37: 1 | CL37: 31 | CM37: A | CN37: 1 | CO37: 31 | CP37: 1 | CQ37: 1
B38: 31 | C38: =IF(input!C38="","",input!C38) -> 1 | D38: =IF(input!D38="","",input!D38) -> 1 | E38: =IF(input!E38="","",input!E38) -> 1 | F38: =IF(input!F38="","",input!F38) -> 1 | G38: =IF(input!G38="","",input!G38) -> 1 | H38: =IF(input!H38="","",input!H38) -> 1 | I38: =IF(input!I38="","",input!I38) -> 1 | K38: =IF(C38<>"",IF(SUM(C38:H38)=9,"+",IF(SUM(C38:H38)=0,"-","x")),"") -> x | M38: Geprüft gesamt | P38: =P28 -> 36 | R38: =R28 -> 36 | T38: =T28 ->  | V38: =P38 -> 36 | AD38: 1 | AE38: 1 | AL38: 1 | AM38: 1 | AP38: =IF(#REF!<>"",IF(AND(#REF!=#REF!,#REF!=#REF!),1,0),"") ->  | AQ38: =IF(#REF!<>"",IF(AND(#REF!=#REF!,#REF!=#REF!,#REF!=I39),1,0),"") ->  | AT38: 1 | AU38: 1 | AX38: 0 | AY38: 6 | BA38: 0 | BB38: 30 | BD38: 2 | BE38: 2 | BF38: 2 | BG38: 6 | BH38: 2 | BI38: 2 | BJ38: 2 | BK38: 6 | BL38: =IF(#REF!="","",IF(#REF!=#REF!,2,0)) ->  | BM38: =IF(#REF!="","",IF(#REF!=#REF!,2,0)) ->  | BN38: =IF(#REF!="","",IF(#REF!=#REF!,2,0)) ->  | BP38: 30 | BQ38: 2 | BR38: 2 | BS38: 2 | BT38: 2 | BU38: 2 | BV38: 2 | BW38: =IF(#REF!="","",IF(#REF!=$I38,2,0)) ->  | BX38: =IF(#REF!="","",IF(#REF!=$I38,2,0)) ->  | BY38: =IF(#REF!="","",IF(#REF!=$I38,2,0)) ->  | CD38: 32 | CE38: A | CF38: 1 | CG38: 32 | CH38: 1 | CI38: 1 | CL38: 32 | CM38: A | CN38: 1 | CO38: 32 | CP38: 1 | CQ38: 1
B39: 32 | C39: =IF(input!C39="","",input!C39) -> 1 | D39: =IF(input!D39="","",input!D39) -> 1 | E39: =IF(input!E39="","",input!E39) -> 1 | F39: =IF(input!F39="","",input!F39) -> 1 | G39: =IF(input!G39="","",input!G39) -> 1 | H39: =IF(input!H39="","",input!H39) -> 1 | I39: =IF(input!I39="","",input!I39) -> 1 | K39: x | M39: # Matched | P39: =IF(P38<>"",SUM(AE7:AE56),"") -> 28 | R39: =IF(R38<>"",SUM(AM7:AM56),"") -> 30 | T39: =IF(T38<>"",SUM(AQ7:AQ56),"") ->  | V39: =IF(P38<>"",SUM(AU7:AU56),"") -> 27 | AD39: =IF(C40<>"",IF(AND(C40=D40,D40=E40),1,0),"") -> 1 | AE39: =IF(C40<>"",IF(AND(C40=D40,D40=E40,E40=I40),1,0),"") -> 1 | AL39: =IF(F40<>"",IF(AND(F40=G40,F40=H40),1,0),"") -> 1 | AM39: =IF(F40<>"",IF(AND(F40=G40,G40=H40,H40=I40),1,0),"") -> 1 | AN39: =IF(AL39<>"",IF(AL39<>AM39,I40,""),"") ->  | AP39: =IF(#REF!<>"",IF(AND(#REF!=#REF!,#REF!=#REF!),1,0),"") ->  | AQ39: =IF(#REF!<>"",IF(AND(#REF!=#REF!,#REF!=#REF!,#REF!=I40),1,0),"") ->  | AR39: =IF(AP39<>"",IF(AP39<>AQ39,I40,""),"") ->  | AT39: =IF(C40="","",IF(OR(SUM(C40:H40)=6,SUM(C40:H40)=0),1,0)) -> 1 | AU39: =IF(C40="","",IF(AND(SUM(C40:I40)>0,SUM(C40:I40)<7),0,1)) -> 1 | AX39: 0 | AY39: 6 | BA39: 0 | BB39: 30 | BD39: 2 | BE39: 2 | BF39: 2 | BG39: 6 | BH39: 2 | BI39: 2 | BJ39: 2 | BK39: 6 | BL39: =IF(#REF!="","",IF(#REF!=#REF!,2,0)) ->  | BM39: =IF(#REF!="","",IF(#REF!=#REF!,2,0)) ->  | BN39: =IF(#REF!="","",IF(#REF!=#REF!,2,0)) ->  | BP39: 30 | BQ39: 2 | BR39: 2 | BS39: 2 | BT39: 2 | BU39: 2 | BV39: 2 | BW39: =IF(#REF!="","",IF(#REF!=$I39,2,0)) ->  | BX39: =IF(#REF!="","",IF(#REF!=$I39,2,0)) ->  | BY39: =IF(#REF!="","",IF(#REF!=$I39,2,0)) ->  | CD39: 33 | CE39: A | CF39: 1 | CG39: 33 | CH39: =C40 -> 1 | CI39: 1 | CL39: 33 | CM39: A | CN39: 1 | CO39: 33 | CP39: 1 | CQ39: 1
B40: 33 | C40: =IF(input!C40="","",input!C40) -> 1 | D40: =IF(input!D40="","",input!D40) -> 1 | E40: =IF(input!E40="","",input!E40) -> 1 | F40: =IF(input!F40="","",input!F40) -> 1 | G40: =IF(input!G40="","",input!G40) -> 1 | H40: =IF(input!H40="","",input!H40) -> 1 | I40: =IF(input!I40="","",input!I40) -> 1 | K40: x | M40: False Positive (*5) | P40: =IF(P38<>"",COUNTIF(AF7:AF56,"=1"),"") -> 0 | R40: =IF(R38<>"",COUNTIF(AN7:AN56,"=1"),"") -> 0 | T40: =IF(T38<>"",COUNTIF(AR7:AR56,"=1"),"") ->  | AD40: 0 | AE40: 0 | AL40: 0 | AM40: 0 | AP40: =IF(#REF!<>"",IF(AND(#REF!=#REF!,#REF!=#REF!),1,0),"") ->  | AQ40: =IF(#REF!<>"",IF(AND(#REF!=#REF!,#REF!=#REF!,#REF!=I41),1,0),"") ->  | AT40: 0 | AU40: 0 | AX40: =COUNTIF(C40:H40,0) -> 0 | AY40: =COUNTIF(C40:H40,1) -> 6 | BA40: 0 | BB40: 30 | BD40: =IF(C40="","",IF(C40=D40,2,0)) -> 2 | BE40: =IF(E40="","",IF(C40=E40,2,0)) -> 2 | BF40: =IF(D40="","",IF(D40=E40,2,0)) -> 2 | BG40: 6 | BH40: =IF(G40="","",IF(F40=G40,2,0)) -> 2 | BI40: =IF(H40="","",IF(F40=H40,2,0)) -> 2 | BJ40: =IF(H40="","",IF(G40=H40,2,0)) -> 2 | BK40: 6 | BL40: =IF(#REF!="","",IF(#REF!=#REF!,2,0)) ->  | BM40: =IF(#REF!="","",IF(#REF!=#REF!,2,0)) ->  | BN40: =IF(#REF!="","",IF(#REF!=#REF!,2,0)) ->  | BP40: 30 | BQ40: =IF(C40="","",IF(C40=$I40,2,0)) -> 2 | BR40: =IF(D40="","",IF(D40=$I40,2,0)) -> 2 | BS40: =IF(E40="","",IF(E40=$I40,2,0)) -> 2 | BT40: =IF(F40="","",IF(F40=$I40,2,0)) -> 2 | BU40: =IF(G40="","",IF(G40=$I40,2,0)) -> 2 | BV40: =IF(H40="","",IF(H40=$I40,2,0)) -> 2 | BW40: =IF(#REF!="","",IF(#REF!=$I40,2,0)) ->  | BX40: =IF(#REF!="","",IF(#REF!=$I40,2,0)) ->  | BY40: =IF(#REF!="","",IF(#REF!=$I40,2,0)) ->  | CD40: 34 | CE40: A | CF40: 1 | CG40: 34 | CH40: 0 | CI40: 0 | CL40: 34 | CM40: A | CN40: 1 | CO40: 34 | CP40: 0 | CQ40: 0
B41: 34 | C41: =IF(input!C41="","",input!C41) -> 0 | D41: =IF(input!D41="","",input!D41) -> 0 | E41: =IF(input!E41="","",input!E41) -> 1 | F41: =IF(input!F41="","",input!F41) -> 0 | G41: =IF(input!G41="","",input!G41) -> 0 | H41: =IF(input!H41="","",input!H41) -> 1 | I41: =IF(input!I41="","",input!I41) -> 0 | K41: x | M41: False Negative (*6) | P41: =IF(P38<>"",COUNTIF(AF7:AF56,"=0"),"") -> 1 | R41: =IF(R38<>"",COUNTIF(AN7:AN56,"=0"),"") -> 1 | T41: =IF(T38<>"",COUNTIF(AR7:AR56,"=0"),"") ->  | AD41: 1 | AE41: 1 | AL41: 1 | AM41: 1 | AP41: =IF(#REF!<>"",IF(AND(#REF!=#REF!,#REF!=#REF!),1,0),"") ->  | AQ41: =IF(#REF!<>"",IF(AND(#REF!=#REF!,#REF!=#REF!,#REF!=I42),1,0),"") ->  | AT41: 1 | AU41: 1 | AX41: 4 | AY41: 2 | BA41: 12 | BB41: 2 | BD41: 2 | BE41: 0 | BF41: 0 | BG41: 2 | BH41: 2 | BI41: 0 | BJ41: 0 | BK41: 2 | BL41: =IF(#REF!="","",IF(#REF!=#REF!,2,0)) ->  | BM41: =IF(#REF!="","",IF(#REF!=#REF!,2,0)) ->  | BN41: =IF(#REF!="","",IF(#REF!=#REF!,2,0)) ->  | BP41: 14 | BQ41: 2 | BR41: 2 | BS41: 0 | BT41: 2 | BU41: 2 | BV41: 0 | BW41: =IF(#REF!="","",IF(#REF!=$I41,2,0)) ->  | BX41: =IF(#REF!="","",IF(#REF!=$I41,2,0)) ->  | BY41: =IF(#REF!="","",IF(#REF!=$I41,2,0)) ->  | CD41: 35 | CE41: A | CF41: 1 | CG41: 35 | CH41: 1 | CI41: 1 | CL41: 35 | CM41: A | CN41: 1 | CO41: 35 | CP41: 1 | CQ41: 1
B42: 35 | C42: =IF(input!C42="","",input!C42) -> 1 | D42: =IF(input!D42="","",input!D42) -> 1 | E42: =IF(input!E42="","",input!E42) -> 1 | F42: =IF(input!F42="","",input!F42) -> 1 | G42: =IF(input!G42="","",input!G42) -> 1 | H42: =IF(input!H42="","",input!H42) -> 1 | I42: =IF(input!I42="","",input!I42) -> 1 | K42: x | M42: Mixed | P42: =IF(P38<>"",P38-P39-P40-P41,"") -> 7 | R42: =IF(R38<>"",R38-R39-R40-R41,"") -> 5 | T42: =IF(T38<>"",T38-T39-T40-T41,"") ->  | AD42: 0 | AE42: 0 | AL42: 1 | AM42: 1 | AP42: =IF(#REF!<>"",IF(AND(#REF!=#REF!,#REF!=#REF!),1,0),"") ->  | AQ42: =IF(#REF!<>"",IF(AND(#REF!=#REF!,#REF!=#REF!,#REF!=I43),1,0),"") ->  | AT42: 0 | AU42: 0 | AX42: 0 | AY42: 6 | BA42: 0 | BB42: 30 | BD42: 2 | BE42: 2 | BF42: 2 | BG42: 6 | BH42: 2 | BI42: 2 | BJ42: 2 | BK42: 6 | BL42: =IF(#REF!="","",IF(#REF!=#REF!,2,0)) ->  | BM42: =IF(#REF!="","",IF(#REF!=#REF!,2,0)) ->  | BN42: =IF(#REF!="","",IF(#REF!=#REF!,2,0)) ->  | BP42: 30 | BQ42: 2 | BR42: 2 | BS42: 2 | BT42: 2 | BU42: 2 | BV42: 2 | BW42: =IF(#REF!="","",IF(#REF!=$I42,2,0)) ->  | BX42: =IF(#REF!="","",IF(#REF!=$I42,2,0)) ->  | BY42: =IF(#REF!="","",IF(#REF!=$I42,2,0)) ->  | CD42: 36 | CE42: A | CF42: 1 | CG42: 36 | CH42: 1 | CI42: 1 | CL42: 36 | CM42: A | CN42: 1 | CO42: 36 | CP42: 1 | CQ42: 1
B43: 36 | C43: =IF(input!C43="","",input!C43) -> 1 | D43: =IF(input!D43="","",input!D43) -> 1 | E43: =IF(input!E43="","",input!E43) -> 0 | F43: =IF(input!F43="","",input!F43) -> 1 | G43: =IF(input!G43="","",input!G43) -> 1 | H43: =IF(input!H43="","",input!H43) -> 1 | I43: =IF(input!I43="","",input!I43) -> 1 | K43: x | M43: 95% upper CI (*7) | P43: =IF(P39<>"",IF(P38=P39,1,(2*(P39+1)*FINV(0.025,2*(P39+1),2*(P38-P39)))/(2*(P38-P39)+2*(P39+1)*FINV(0.025,2*(P39+1),2*(P38-P39)))),"") -> 0.8988494697 | R43: =IF(R39<>"",IF(R38=R39,1,(2*(R39+1)*FINV(0.025,2*(R39+1),2*(R38-R39)))/(2*(R38-R39)+2*(R39+1)*FINV(0.025,2*(R39+1),2*(R38-R39)))),"") -> 0.9362798664 | T43: =IF(T39<>"",IF(T38=T39,1,(2*(T39+1)*FINV(0.025,2*(T39+1),2*(T38-T39)))/(2*(T38-T39)+2*(T39+1)*FINV(0.025,2*(T39+1),2*(T38-T39)))),"") ->  | V43: =IF(V39<>"",IF(V38=V39,1,(2*(V39+1)*FINV(0.025,2*(V39+1),2*(V38-V39)))/(2*(V38-V39)+2*(V39+1)*FINV(0.025,2*(V39+1),2*(V38-V39)))),"") -> 0.8787967059 | AP43: =IF(#REF!<>"",IF(AND(#REF!=#REF!,#REF!=#REF!),1,0),"") ->  | AQ43: =IF(#REF!<>"",IF(AND(#REF!=#REF!,#REF!=#REF!,#REF!=I44),1,0),"") ->  | AX43: 1 | AY43: 5 | BA43: 0 | BB43: 20 | BD43: 2 | BE43: 0 | BF43: 0 | BG43: 2 | BH43: 2 | BI43: 2 | BJ43: 2 | BK43: 6 | BL43: =IF(#REF!="","",IF(#REF!=#REF!,2,0)) ->  | BM43: =IF(#REF!="","",IF(#REF!=#REF!,2,0)) ->  | BN43: =IF(#REF!="","",IF(#REF!=#REF!,2,0)) ->  | BP43: 20 | BQ43: 2 | BR43: 2 | BS43: 0 | BT43: 2 | BU43: 2 | BV43: 2 | BW43: =IF(#REF!="","",IF(#REF!=$I43,2,0)) ->  | BX43: =IF(#REF!="","",IF(#REF!=$I43,2,0)) ->  | BY43: =IF(#REF!="","",IF(#REF!=$I43,2,0)) ->  | CD43: 37 | CE43: A | CF43: 1 | CG43: 37 | CL43: 51 | CM43: A | CN43: 2 | CO43: 1 | CP43: 1 | CQ43: 0
B44: 37 | C44: =IF(input!C44="","",input!C44) ->  | D44: =IF(input!D44="","",input!D44) ->  | E44: =IF(input!E44="","",input!E44) ->  | F44: =IF(input!F44="","",input!F44) ->  | G44: =IF(input!G44="","",input!G44) ->  | H44: =IF(input!H44="","",input!H44) ->  | I44: =IF(input!I44="","",input!I44) ->  | M44: Ergebnis | P44: =IF(P38<>"",P39/P38,"") -> 0.7777777778 | R44: =IF(R38<>"",R39/R38,"") -> 0.8333333333 | T44: =IF(T38<>"",T39/T38,"") ->  | V44: =IF(V38<>"",V39/V38,"") -> 0.75 | AP44: =IF(#REF!<>"",IF(AND(#REF!=#REF!,#REF!=#REF!),1,0),"") ->  | AQ44: =IF(#REF!<>"",IF(AND(#REF!=#REF!,#REF!=#REF!,#REF!=I45),1,0),"") ->  | AX44: 0 | AY44: 0 | BA44: 0 | BB44: 0 | BG44: 0 | BK44: 0 | BL44: =IF(#REF!="","",IF(#REF!=#REF!,2,0)) ->  | BM44: =IF(#REF!="","",IF(#REF!=#REF!,2,0)) ->  | BN44: =IF(#REF!="","",IF(#REF!=#REF!,2,0)) ->  | BP44: 0 | BW44: =IF(#REF!="","",IF(#REF!=$I44,2,0)) ->  | BX44: =IF(#REF!="","",IF(#REF!=$I44,2,0)) ->  | BY44: =IF(#REF!="","",IF(#REF!=$I44,2,0)) ->  | CD44: 38 | CE44: A | CF44: 1 | CG44: 38 | CL44: 52 | CM44: A | CN44: 2 | CO44: 2 | CP44: 1 | CQ44: 1
B45: 38 | C45: =IF(input!C45="","",input!C45) ->  | D45: =IF(input!D45="","",input!D45) ->  | E45: =IF(input!E45="","",input!E45) ->  | F45: =IF(input!F45="","",input!F45) ->  | G45: =IF(input!G45="","",input!G45) ->  | H45: =IF(input!H45="","",input!H45) ->  | I45: =IF(input!I45="","",input!I45) ->  | M45: 95% lower CI (*7) | P45: =IF(P39<>"",IF(P39=0,0,(2*P39*FINV(0.975,2*P39,2*(P38-P39+1)))/(2*(P38-P39+1)+2*P39*FINV(0.975,2*P39,2*(P38-P39+1)))),"") -> 0.6084823508 | R45: =IF(R39<>"",IF(P39=0,0,(2*R39*FINV(0.975,2*R39,2*(R38-R39+1)))/(2*(R38-R39+1)+2*R39*FINV(0.975,2*R39,2*(R38-R39+1)))),"") -> 0.671884068 | T45: =IF(T39<>"",IF(P39=0,0,(2*T39*FINV(0.975,2*T39,2*(T38-T39+1)))/(2*(T38-T39+1)+2*T39*FINV(0.975,2*T39,2*(T38-T39+1)))),"") ->  | V45: =IF(V39<>"",IF(P39=0,0,(2*V39*FINV(0.975,2*V39,2*(V38-V39+1)))/(2*(V38-V39+1)+2*V39*FINV(0.975,2*V39,2*(V38-V39+1)))),"") -> 0.5779704154 | AP45: =IF(#REF!<>"",IF(AND(#REF!=#REF!,#REF!=#REF!),1,0),"") ->  | AQ45: =IF(#REF!<>"",IF(AND(#REF!=#REF!,#REF!=#REF!,#REF!=I46),1,0),"") ->  | AX45: 0 | AY45: 0 | BA45: 0 | BB45: 0 | BG45: 0 | BK45: 0 | BL45: =IF(#REF!="","",IF(#REF!=#REF!,2,0)) ->  | BM45: =IF(#REF!="","",IF(#REF!=#REF!,2,0)) ->  | BN45: =IF(#REF!="","",IF(#REF!=#REF!,2,0)) ->  | BP45: 0 | BW45: =IF(#REF!="","",IF(#REF!=$I45,2,0)) ->  | BX45: =IF(#REF!="","",IF(#REF!=$I45,2,0)) ->  | BY45: =IF(#REF!="","",IF(#REF!=$I45,2,0)) ->  | CD45: 39 | CE45: A | CF45: 1 | CG45: 39 | CL45: 53 | CM45: A | CN45: 2 | CO45: 3 | CP45: 0 | CQ45: 0
B46: 39 | C46: =IF(input!C46="","",input!C46) ->  | D46: =IF(input!D46="","",input!D46) ->  | E46: =IF(input!E46="","",input!E46) ->  | F46: =IF(input!F46="","",input!F46) ->  | G46: =IF(input!G46="","",input!G46) ->  | H46: =IF(input!H46="","",input!H46) ->  | I46: =IF(input!I46="","",input!I46) ->  | M46: Fleiss Kappa | P46: =BQ74 -> 0.7823688673 | R46: =BT74 -> 0.8180564534 | T46: =BW74 ->  | V46: =BQ75 -> 0.8002126603 | AP46: =IF(#REF!<>"",IF(AND(#REF!=#REF!,#REF!=#REF!),1,0),"") ->  | AQ46: =IF(#REF!<>"",IF(AND(#REF!=#REF!,#REF!=#REF!,#REF!=I47),1,0),"") ->  | AX46: 0 | AY46: 0 | BA46: 0 | BB46: 0 | BG46: 0 | BK46: 0 | BL46: =IF(#REF!="","",IF(#REF!=#REF!,2,0)) ->  | BM46: =IF(#REF!="","",IF(#REF!=#REF!,2,0)) ->  | BN46: =IF(#REF!="","",IF(#REF!=#REF!,2,0)) ->  | BP46: 0 | BW46: =IF(#REF!="","",IF(#REF!=$I46,2,0)) ->  | BX46: =IF(#REF!="","",IF(#REF!=$I46,2,0)) ->  | BY46: =IF(#REF!="","",IF(#REF!=$I46,2,0)) ->  | CD46: 40 | CE46: A | CF46: 1 | CG46: 40 | CL46: 54 | CM46: A | CN46: 2 | CO46: 4 | CP46: 0 | CQ46: 0
B47: 40 | C47: =IF(input!C47="","",input!C47) ->  | D47: =IF(input!D47="","",input!D47) ->  | E47: =IF(input!E47="","",input!E47) ->  | F47: =IF(input!F47="","",input!F47) ->  | G47: =IF(input!G47="","",input!G47) ->  | H47: =IF(input!H47="","",input!H47) ->  | I47: =IF(input!I47="","",input!I47) ->  | AP47: =IF(#REF!<>"",IF(AND(#REF!=#REF!,#REF!=#REF!),1,0),"") ->  | AQ47: =IF(#REF!<>"",IF(AND(#REF!=#REF!,#REF!=#REF!,#REF!=I48),1,0),"") ->  | AX47: 0 | AY47: 0 | BA47: 0 | BB47: 0 | BG47: 0 | BK47: 0 | BL47: =IF(#REF!="","",IF(#REF!=#REF!,2,0)) ->  | BM47: =IF(#REF!="","",IF(#REF!=#REF!,2,0)) ->  | BN47: =IF(#REF!="","",IF(#REF!=#REF!,2,0)) ->  | BP47: 0 | BW47: =IF(#REF!="","",IF(#REF!=$I47,2,0)) ->  | BX47: =IF(#REF!="","",IF(#REF!=$I47,2,0)) ->  | BY47: =IF(#REF!="","",IF(#REF!=$I47,2,0)) ->  | CD47: 41 | CE47: A | CF47: 1 | CG47: 41 | CL47: 55 | CM47: A | CN47: 2 | CO47: 5 | CP47: 0 | CQ47: 0
B48: =B47+1 -> 41 | C48: =IF(input!C48="","",input!C48) ->  | D48: =IF(input!D48="","",input!D48) ->  | E48: =IF(input!E48="","",input!E48) ->  | F48: =IF(input!F48="","",input!F48) ->  | G48: =IF(input!G48="","",input!G48) ->  | H48: =IF(input!H48="","",input!H48) ->  | I48: =IF(input!I48="","",input!I48) ->  | M48: Anmerkungen: | AP48: =IF(#REF!<>"",IF(AND(#REF!=#REF!,#REF!=#REF!),1,0),"") ->  | AQ48: =IF(#REF!<>"",IF(AND(#REF!=#REF!,#REF!=#REF!,#REF!=I49),1,0),"") ->  | AX48: 0 | AY48: 0 | BA48: 0 | BB48: 0 | BG48: 0 | BK48: 0 | BL48: =IF(#REF!="","",IF(#REF!=#REF!,2,0)) ->  | BM48: =IF(#REF!="","",IF(#REF!=#REF!,2,0)) ->  | BN48: =IF(#REF!="","",IF(#REF!=#REF!,2,0)) ->  | BP48: 0 | BW48: =IF(#REF!="","",IF(#REF!=$I48,2,0)) ->  | BX48: =IF(#REF!="","",IF(#REF!=$I48,2,0)) ->  | BY48: =IF(#REF!="","",IF(#REF!=$I48,2,0)) ->  | CD48: 42 | CE48: A | CF48: 1 | CG48: 42 | CL48: 56 | CM48: A | CN48: 2 | CO48: 6 | CP48: 1 | CQ48: 1
B49: =B48+1 -> 42 | C49: =IF(input!C49="","",input!C49) ->  | D49: =IF(input!D49="","",input!D49) ->  | E49: =IF(input!E49="","",input!E49) ->  | F49: =IF(input!F49="","",input!F49) ->  | G49: =IF(input!G49="","",input!G49) ->  | H49: =IF(input!H49="","",input!H49) ->  | I49: =IF(input!I49="","",input!I49) ->  | AP49: =IF(#REF!<>"",IF(AND(#REF!=#REF!,#REF!=#REF!),1,0),"") ->  | AQ49: =IF(#REF!<>"",IF(AND(#REF!=#REF!,#REF!=#REF!,#REF!=I50),1,0),"") ->  | AX49: 0 | AY49: 0 | BA49: 0 | BB49: 0 | BG49: 0 | BK49: 0 | BL49: =IF(#REF!="","",IF(#REF!=#REF!,2,0)) ->  | BM49: =IF(#REF!="","",IF(#REF!=#REF!,2,0)) ->  | BN49: =IF(#REF!="","",IF(#REF!=#REF!,2,0)) ->  | BP49: 0 | BW49: =IF(#REF!="","",IF(#REF!=$I49,2,0)) ->  | BX49: =IF(#REF!="","",IF(#REF!=$I49,2,0)) ->  | BY49: =IF(#REF!="","",IF(#REF!=$I49,2,0)) ->  | CD49: 43 | CE49: A | CF49: 1 | CG49: 43 | CL49: 57 | CM49: A | CN49: 2 | CO49: 7 | CP49: 1 | CQ49: 1
B50: 43 | C50: =IF(input!C50="","",input!C50) ->  | D50: =IF(input!D50="","",input!D50) ->  | E50: =IF(input!E50="","",input!E50) ->  | F50: =IF(input!F50="","",input!F50) ->  | G50: =IF(input!G50="","",input!G50) ->  | H50: =IF(input!H50="","",input!H50) ->  | I50: =IF(input!I50="","",input!I50) ->  | AP50: =IF(#REF!<>"",IF(AND(#REF!=#REF!,#REF!=#REF!),1,0),"") ->  | AQ50: =IF(#REF!<>"",IF(AND(#REF!=#REF!,#REF!=#REF!,#REF!=I51),1,0),"") ->  | AX50: 0 | AY50: 0 | BA50: 0 | BB50: 0 | BG50: 0 | BK50: 0 | BL50: =IF(#REF!="","",IF(#REF!=#REF!,2,0)) ->  | BM50: =IF(#REF!="","",IF(#REF!=#REF!,2,0)) ->  | BN50: =IF(#REF!="","",IF(#REF!=#REF!,2,0)) ->  | BP50: 0 | BW50: =IF(#REF!="","",IF(#REF!=$I50,2,0)) ->  | BX50: =IF(#REF!="","",IF(#REF!=$I50,2,0)) ->  | BY50: =IF(#REF!="","",IF(#REF!=$I50,2,0)) ->  | CD50: 44 | CE50: A | CF50: 1 | CG50: 44 | CL50: 58 | CM50: A | CN50: 2 | CO50: 8 | CP50: 1 | CQ50: 1
B51: 44 | C51: =IF(input!C51="","",input!C51) ->  | D51: =IF(input!D51="","",input!D51) ->  | E51: =IF(input!E51="","",input!E51) ->  | F51: =IF(input!F51="","",input!F51) ->  | G51: =IF(input!G51="","",input!G51) ->  | H51: =IF(input!H51="","",input!H51) ->  | I51: =IF(input!I51="","",input!I51) ->  | AP51: =IF(#REF!<>"",IF(AND(#REF!=#REF!,#REF!=#REF!),1,0),"") ->  | AQ51: =IF(#REF!<>"",IF(AND(#REF!=#REF!,#REF!=#REF!,#REF!=I52),1,0),"") ->  | AX51: 0 | AY51: 0 | BA51: 0 | BB51: 0 | BG51: 0 | BK51: 0 | BL51: =IF(#REF!="","",IF(#REF!=#REF!,2,0)) ->  | BM51: =IF(#REF!="","",IF(#REF!=#REF!,2,0)) ->  | BN51: =IF(#REF!="","",IF(#REF!=#REF!,2,0)) ->  | BP51: 0 | BW51: =IF(#REF!="","",IF(#REF!=$I51,2,0)) ->  | BX51: =IF(#REF!="","",IF(#REF!=$I51,2,0)) ->  | BY51: =IF(#REF!="","",IF(#REF!=$I51,2,0)) ->  | CD51: 45 | CE51: A | CF51: 1 | CG51: 45 | CL51: 59 | CM51: A | CN51: 2 | CO51: 9 | CP51: 0 | CQ51: 0
B52: 45 | C52: =IF(input!C52="","",input!C52) ->  | D52: =IF(input!D52="","",input!D52) ->  | E52: =IF(input!E52="","",input!E52) ->  | F52: =IF(input!F52="","",input!F52) ->  | G52: =IF(input!G52="","",input!G52) ->  | H52: =IF(input!H52="","",input!H52) ->  | I52: =IF(input!I52="","",input!I52) ->  | AP52: =IF(#REF!<>"",IF(AND(#REF!=#REF!,#REF!=#REF!),1,0),"") ->  | AQ52: =IF(#REF!<>"",IF(AND(#REF!=#REF!,#REF!=#REF!,#REF!=I53),1,0),"") ->  | AX52: 0 | AY52: 0 | BA52: 0 | BB52: 0 | BG52: 0 | BK52: 0 | BL52: =IF(#REF!="","",IF(#REF!=#REF!,2,0)) ->  | BM52: =IF(#REF!="","",IF(#REF!=#REF!,2,0)) ->  | BN52: =IF(#REF!="","",IF(#REF!=#REF!,2,0)) ->  | BP52: 0 | BW52: =IF(#REF!="","",IF(#REF!=$I52,2,0)) ->  | BX52: =IF(#REF!="","",IF(#REF!=$I52,2,0)) ->  | BY52: =IF(#REF!="","",IF(#REF!=$I52,2,0)) ->  | CD52: 46 | CE52: A | CF52: 1 | CG52: 46 | CL52: 60 | CM52: A | CN52: 2 | CO52: 10 | CP52: 1 | CQ52: 1
B53: 46 | C53: =IF(input!C53="","",input!C53) ->  | D53: =IF(input!D53="","",input!D53) ->  | E53: =IF(input!E53="","",input!E53) ->  | F53: =IF(input!F53="","",input!F53) ->  | G53: =IF(input!G53="","",input!G53) ->  | H53: =IF(input!H53="","",input!H53) ->  | I53: =IF(input!I53="","",input!I53) ->  | AP53: =IF(#REF!<>"",IF(AND(#REF!=#REF!,#REF!=#REF!),1,0),"") ->  | AQ53: =IF(#REF!<>"",IF(AND(#REF!=#REF!,#REF!=#REF!,#REF!=I54),1,0),"") ->  | AX53: 0 | AY53: 0 | BA53: 0 | BB53: 0 | BG53: 0 | BK53: 0 | BL53: =IF(#REF!="","",IF(#REF!=#REF!,2,0)) ->  | BM53: =IF(#REF!="","",IF(#REF!=#REF!,2,0)) ->  | BN53: =IF(#REF!="","",IF(#REF!=#REF!,2,0)) ->  | BP53: 0 | BW53: =IF(#REF!="","",IF(#REF!=$I53,2,0)) ->  | BX53: =IF(#REF!="","",IF(#REF!=$I53,2,0)) ->  | BY53: =IF(#REF!="","",IF(#REF!=$I53,2,0)) ->  | CD53: 47 | CE53: A | CF53: 1 | CG53: 47 | CL53: 61 | CM53: A | CN53: 2 | CO53: 11 | CP53: 1 | CQ53: 1
B54: 47 | C54: =IF(input!C54="","",input!C54) ->  | D54: =IF(input!D54="","",input!D54) ->  | E54: =IF(input!E54="","",input!E54) ->  | F54: =IF(input!F54="","",input!F54) ->  | G54: =IF(input!G54="","",input!G54) ->  | H54: =IF(input!H54="","",input!H54) ->  | I54: =IF(input!I54="","",input!I54) ->  | AP54: =IF(#REF!<>"",IF(AND(#REF!=#REF!,#REF!=#REF!),1,0),"") ->  | AQ54: =IF(#REF!<>"",IF(AND(#REF!=#REF!,#REF!=#REF!,#REF!=I55),1,0),"") ->  | AX54: 0 | AY54: 0 | BA54: 0 | BB54: 0 | BG54: 0 | BK54: 0 | BL54: =IF(#REF!="","",IF(#REF!=#REF!,2,0)) ->  | BM54: =IF(#REF!="","",IF(#REF!=#REF!,2,0)) ->  | BN54: =IF(#REF!="","",IF(#REF!=#REF!,2,0)) ->  | BP54: 0 | BW54: =IF(#REF!="","",IF(#REF!=$I54,2,0)) ->  | BX54: =IF(#REF!="","",IF(#REF!=$I54,2,0)) ->  | BY54: =IF(#REF!="","",IF(#REF!=$I54,2,0)) ->  | CD54: 48 | CE54: A | CF54: 1 | CG54: 48 | CL54: 62 | CM54: A | CN54: 2 | CO54: 12 | CP54: 0 | CQ54: 0
B55: 48 | C55: =IF(input!C55="","",input!C55) ->  | D55: =IF(input!D55="","",input!D55) ->  | E55: =IF(input!E55="","",input!E55) ->  | F55: =IF(input!F55="","",input!F55) ->  | G55: =IF(input!G55="","",input!G55) ->  | H55: =IF(input!H55="","",input!H55) ->  | I55: =IF(input!I55="","",input!I55) ->  | AP55: =IF(#REF!<>"",IF(AND(#REF!=#REF!,#REF!=#REF!),1,0),"") ->  | AQ55: =IF(#REF!<>"",IF(AND(#REF!=#REF!,#REF!=#REF!,#REF!=I56),1,0),"") ->  | AX55: 0 | AY55: 0 | BA55: 0 | BB55: 0 | BG55: 0 | BK55: 0 | BL55: =IF(#REF!="","",IF(#REF!=#REF!,2,0)) ->  | BM55: =IF(#REF!="","",IF(#REF!=#REF!,2,0)) ->  | BN55: =IF(#REF!="","",IF(#REF!=#REF!,2,0)) ->  | BP55: 0 | BW55: =IF(#REF!="","",IF(#REF!=$I55,2,0)) ->  | BX55: =IF(#REF!="","",IF(#REF!=$I55,2,0)) ->  | BY55: =IF(#REF!="","",IF(#REF!=$I55,2,0)) ->  | CD55: 49 | CE55: A | CF55: 1 | CG55: 49 | CL55: 63 | CM55: A | CN55: 2 | CO55: 13 | CP55: 1 | CQ55: 1
B56: 49 | C56: =IF(input!C56="","",input!C56) ->  | D56: =IF(input!D56="","",input!D56) ->  | E56: =IF(input!E56="","",input!E56) ->  | F56: =IF(input!F56="","",input!F56) ->  | G56: =IF(input!G56="","",input!G56) ->  | H56: =IF(input!H56="","",input!H56) ->  | I56: =IF(input!I56="","",input!I56) ->  | AP56: =IF(#REF!<>"",IF(AND(#REF!=#REF!,#REF!=#REF!),1,0),"") ->  | AQ56: =IF(#REF!<>"",IF(AND(#REF!=#REF!,#REF!=#REF!,#REF!=I57),1,0),"") ->  | AX56: 0 | AY56: 0 | BA56: 0 | BB56: 0 | BG56: 0 | BK56: 0 | BL56: =IF(#REF!="","",IF(#REF!=#REF!,2,0)) ->  | BM56: =IF(#REF!="","",IF(#REF!=#REF!,2,0)) ->  | BN56: =IF(#REF!="","",IF(#REF!=#REF!,2,0)) ->  | BP56: 0 | BW56: =IF(#REF!="","",IF(#REF!=$I56,2,0)) ->  | BX56: =IF(#REF!="","",IF(#REF!=$I56,2,0)) ->  | BY56: =IF(#REF!="","",IF(#REF!=$I56,2,0)) ->  | CD56: 50 | CE56: A | CF56: 1 | CG56: 50 | CL56: 64 | CM56: A | CN56: 2 | CO56: 14 | CP56: 1 | CQ56: 1
B57: 50 | C57: =IF(input!C57="","",input!C57) ->  | D57: =IF(input!D57="","",input!D57) ->  | E57: =IF(input!E57="","",input!E57) ->  | F57: =IF(input!F57="","",input!F57) ->  | G57: =IF(input!G57="","",input!G57) ->  | H57: =IF(input!H57="","",input!H57) ->  | I57: =IF(input!I57="","",input!I57) ->  | AX57: 0 | AY57: 0 | BA57: 0 | BB57: 0 | BG57: 0 | BK57: 0 | BL57: =IF(#REF!="","",IF(#REF!=#REF!,2,0)) ->  | BM57: =IF(#REF!="","",IF(#REF!=#REF!,2,0)) ->  | BN57: =IF(#REF!="","",IF(#REF!=#REF!,2,0)) ->  | BP57: 0 | BW57: =IF(#REF!="","",IF(#REF!=$I57,2,0)) ->  | BX57: =IF(#REF!="","",IF(#REF!=$I57,2,0)) ->  | BY57: =IF(#REF!="","",IF(#REF!=$I57,2,0)) ->  | CD57: 51 | CE57: A | CF57: 2 | CG57: 1 | CH57: =D8 -> 1 | CI57: =I8 -> 0 | CL57: 65 | CM57: A | CN57: 2 | CO57: 15 | CP57: 1 | CQ57: 1
AW58: Summe | AX58: =SUM(AX8:AX57) -> 60 | AY58: =SUM(AY8:AY57) -> 156 | BA58: =SUM(BA8:BA57) -> 248 | BB58: =SUM(BB8:BB57) -> 728 | BG58: =SUM(BG8:BG57) -> 188 | BK58: =SUM(BK8:BK57) -> 196 | BO58: =SUM(BO8:BO57) ->  | BP58: =SUM(BP8:BP57) -> 976 | BQ58: =SUM(BQ8:BQ57) -> 70 | BR58: 68 | BS58: 58 | BT58: 70 | BU58: 66 | BV58: 64 | CD58: 52 | CE58: A | CF58: 2 | CG58: 2 | CH58: 1 | CI58: =I9 -> 1 | CL58: 66 | CM58: A | CN58: 2 | CO58: 16 | CP58: 1 | CQ58: 1
BD59: =COUNT(BD8:BD57)*2 -> 72 | BE59: =COUNT(BE8:BE57)*2 -> 72 | BF59: =COUNT(BF8:BF57)*2 -> 72 | BG59: =SUM(BD59:BF59) -> 216 | BH59: =COUNT(BH8:BH57)*2 -> 72 | BI59: 72 | BJ59: 72 | BK59: =SUM(BH59:BJ59) -> 216 | BL59: 0 | BM59: 0 | BN59: 0 | BO59: =SUM(BL59:BN59) -> 0 | BP59: =BA68 -> 1080 | BQ59: =COUNT(BQ8:BQ57)*2 -> 72 | BR59: =COUNT(BR8:BR57)*2 -> 72 | BS59: 72 | BT59: 72 | BU59: 72 | BV59: 72 | BW59: 0 | BX59: 0 | BY59: 0 | CD59: 53 | CE59: A | CF59: 2 | CG59: 3 | CH59: 0 | CI59: 0 | CL59: 67 | CM59: A | CN59: 2 | CO59: 17 | CP59: 1 | CQ59: 1
AD60: A | AF60: B | AL60: C | AX60: =AX58+AY58 -> 216 | BA60: =BA58+BB58 -> 976 | BG60: =BG58/BG59 -> 0.8703703704 | BK60: =BK58/BK59 -> 0.9074074074 | BO60: =BO58/BO59 ->  | BP60: =BP58/BP59 -> 0.9037037037 | BQ60: =BQ58/BQ59 -> 0.9722222222 | BR60: 0.9444444444 | BS60: =IF(BS59=0,"",BS58/BS59) -> 0.8055555556 | BT60: 0.9722222222 | BU60: 0.9166666667 | BV60: =IF(BV59=0,"",BV58/BV59) -> 0.8888888889 | BY60: =IF(BY59=0,"",BY58/BY59) ->  | CD60: 54 | CE60: A | CF60: 2 | CG60: 4 | CH60: 0 | CI60: 0 | CL60: 68 | CM60: A | CN60: 2 | CO60: 18 | CP60: 1 | CQ60: 1
AD61: =IF(P28<>"",P30-P31,"") ->  | AF61: =IF(R28<>"",R30-R31,"") ->  | AL61: =IF(T28<>"",T30-T31,"") ->  | BG61: =COUNTIF($C$8:$E$57,0) -> 31 | BK61: =COUNTIF($F$8:$H$57,0) -> 29 | BO61: =COUNTIF(#REF!,0) ->  | BP61: =COUNTIF($C$8:$H$57,0) -> 60 | BQ61: =COUNTIF(C$8:C$57,0)+COUNTIF($I$8:$I$57,0) -> 21 | BR61: 20 | BS61: 23 | BT61: 21 | BU61: 21 | BV61: 20 | BW61: =COUNTIF(#REF!,0)+COUNTIF($I$8:$I$57,0) ->  | BX61: =COUNTIF(#REF!,0)+COUNTIF($I$8:$I$57,0) ->  | BY61: =COUNTIF(#REF!,0)+COUNTIF($I$8:$I$57,0) ->  | CD61: 55 | CE61: A | CF61: 2 | CG61: 5 | CH61: 0 | CI61: 0 | CL61: 69 | CM61: A | CN61: 2 | CO61: 19 | CP61: 1 | CQ61: 1
AD62: =IF(P28<>"",P31-P32,"") ->  | AF62: =IF(R28<>"",R31-R32,"") ->  | AL62: =IF(T28<>"",T31-T32,"") ->  | AX62: =AX58/$AX$60 -> 0.2777777778 | AY62: =AY58/$AX$60 -> 0.7222222222 | BA62: =AX8+AY8 -> 6 | BG62: =COUNTIF($C$8:$E$57,1) -> 77 | BK62: =COUNTIF($F$8:$H$57,1) -> 79 | BO62: =COUNTIF(#REF!,1) ->  | BP62: =COUNTIF($C$8:$H$57,1) -> 156 | BQ62: =COUNTIF(C$8:C$57,1)+COUNTIF($I$8:$I$57,1) -> 51 | BR62: 52 | BS62: 49 | BT62: 51 | BU62: 51 | BV62: 52 | BW62: =COUNTIF(#REF!,1)+COUNTIF($I$8:$I$57,1) ->  | BX62: =COUNTIF(#REF!,1)+COUNTIF($I$8:$I$57,1) ->  | BY62: =COUNTIF(#REF!,1)+COUNTIF($I$8:$I$57,1) ->  | CD62: 56 | CE62: A | CF62: 2 | CG62: 6 | CH62: 1 | CI62: 1 | CL62: 70 | CM62: A | CN62: 2 | CO62: 20 | CP62: 1 | CQ62: 1
AD63: =IF(P28<>"",P43-P44,"") -> 0.1210716919 | AF63: =IF(R28<>"",R43-R44,"") -> 0.1029465331 | AL63: =IF(T28<>"",T43-T44,"") ->  | CD63: 57 | CE63: A | CF63: 2 | CG63: 7 | CH63: 1 | CI63: 1 | CL63: 71 | CM63: A | CN63: 2 | CO63: 21 | CP63: 1 | CQ63: 1
AD64: =IF(P28<>"",P44-P45,"") -> 0.1692954269 | AF64: =IF(R28<>"",R44-R45,"") -> 0.1614492654 | AL64: =IF(T28<>"",T44-T45,"") ->  | CD64: 58 | CE64: A | CF64: 2 | CG64: 8 | CH64: 1 | CI64: 1 | CL64: 72 | CM64: A | CN64: 2 | CO64: 22 | CP64: 0 | CQ64: 0
BG65: =BG62+BG61 -> 108 | BK65: =BK62+BK61 -> 108 | BO65: =BO62+BO61 ->  | BP65: =BP62+BP61 -> 216 | BQ65: =BQ62+BQ61 -> 72 | BR65: =BR62+BR61 -> 72 | BS65: 72 | BT65: 72 | BU65: 72 | BV65: 72 | CD65: 59 | CE65: A | CF65: 2 | CG65: 9 | CH65: 0 | CI65: 0 | CL65: 73 | CM65: A | CN65: 2 | CO65: 23 | CP65: 1 | CQ65: 1
AX66: =AX62*AX62 -> 0.07716049383 | AY66: =AY62*AY62 -> 0.5216049383 | BA66: =BA62*(BA62-1) -> 30 | BG66: =BG61/BG65 -> 0.287037037 | BK66: =BK61/BK65 -> 0.2685185185 | BO66: =BO61/BO65 ->  | BP66: =BP61/BP65 -> 0.2777777778 | BQ66: =BQ61/BQ65 -> 0.2916666667 | BR66: 0.2777777778 | BS66: 0.3194444444 | BT66: 0.2916666667 | BU66: 0.2916666667 | BV66: 0.2777777778 | CD66: 60 | CE66: A | CF66: 2 | CG66: 10 | CH66: 1 | CI66: 1 | CL66: 74 | CM66: A | CN66: 2 | CO66: 24 | CP66: 1 | CQ66: 1
BG67: =BG62/BG65 -> 0.712962963 | BK67: =BK62/BK65 -> 0.7314814815 | BO67: =BO62/BO65 ->  | BP67: =BP62/BP65 -> 0.7222222222 | BQ67: =BQ62/BQ65 -> 0.7083333333 | BR67: 0.7222222222 | BS67: 0.6805555556 | BT67: 0.7083333333 | BU67: 0.7083333333 | BV67: 0.7222222222 | CD67: 61 | CE67: A | CF67: 2 | CG67: 11 | CH67: 1 | CI67: 1 | CL67: 75 | CM67: A | CN67: 2 | CO67: 25 | CP67: 0 | CQ67: 0
BA68: =BA66*P28 -> 1080 | BG68: =BG66*BG66 -> 0.08239026063 | BK68: =BK66*BK66 -> 0.07210219479 | BO68: =BO66*BO66 ->  | BP68: =BP66*BP66 -> 0.07716049383 | BQ68: =BQ66*BQ66 -> 0.08506944444 | BR68: 0.07716049383 | BS68: 0.1020447531 | BT68: 0.08506944444 | BU68: 0.08506944444 | BV68: 0.07716049383 | CD68: 62 | CE68: A | CF68: 2 | CG68: 12 | CH68: 0 | CI68: 0 | CL68: 76 | CM68: A | CN68: 2 | CO68: 26 | CP68: 1 | CQ68: 0
BG69: =BG67*BG67 -> 0.5083161866 | BK69: =BK67*BK67 -> 0.5350651578 | BO69: =BO67*BO67 ->  | BP69: =BP67*BP67 -> 0.5216049383 | BQ69: 0.5017361111 | BR69: 0.5216049383 | BS69: 0.4631558642 | BT69: 0.5017361111 | BU69: 0.5017361111 | BV69: 0.5216049383 | CD69: 63 | CE69: A | CF69: 2 | CG69: 13 | CH69: 1 | CI69: 1 | CL69: 77 | CM69: A | CN69: 2 | CO69: 27 | CP69: 1 | CQ69: 1
CD70: 64 | CE70: A | CF70: 2 | CG70: 14 | CH70: 1 | CI70: 1 | CL70: 78 | CM70: A | CN70: 2 | CO70: 28 | CP70: 1 | CQ70: 1
AX71: =AX66+AY66 -> 0.5987654321 | BA71: =BA60/BA68 -> 0.9037037037 | BC71: Pexp | BG71: =BG69+BG68 -> 0.5907064472 | BK71: =BK69+BK68 -> 0.6071673525 | BO71: =BO69+BO68 ->  | BP71: =BP69+BP68 -> 0.5987654321 | BQ71: =BQ69+BQ68 -> 0.5868055556 | BR71: 0.5987654321 | BS71: 0.5652006173 | BT71: 0.5868055556 | BU71: 0.5868055556 | BV71: 0.5987654321 | CD71: 65 | CE71: A | CF71: 2 | CG71: 15 | CH71: 1 | CI71: 1 | CL71: 79 | CM71: A | CN71: 2 | CO71: 29 | CP71: 1 | CQ71: 1
BG72: Within Prüfer | CD72: 66 | CE72: A | CF72: 2 | CG72: 16 | CH72: 1 | CI72: 1 | CL72: 80 | CM72: A | CN72: 2 | CO72: 30 | CP72: 0 | CQ72: 0
AZ73: between | BA73: =(BA71-AX71)/(1-AX71) -> 0.76 | BG73: =IF(BG60=1,1,(BG60-BG71)/(1-BG71)) -> 0.6832844575 | BK73: =IF(BK60=1,1,(BK60-BK71)/(1-BK71)) -> 0.7642950677 | BO73: =IF(BO60=1,1,(BO60-BO71)/(1-BO71)) ->  | BP73: 0.76 | BQ73: 0.9327731092 | BR73: 0.8615384615 | BS73: 0.5527950311 | BT73: 0.9327731092 | BU73: 0.7983193277 | BV73: 0.7230769231 | CD73: 67 | CE73: A | CF73: 2 | CG73: 17 | CH73: 1 | CI73: 1 | CL73: 81 | CM73: A | CN73: 2 | CO73: 31 | CP73: 1 | CQ73: 1
BQ74: =AVERAGE(BQ73:BS73) -> 0.7823688673 | BT74: =AVERAGE(BT73:BV73) -> 0.8180564534 | BW74: =AVERAGE(BW73:BY73) ->  | CD74: 68 | CE74: A | CF74: 2 | CG74: 18 | CH74: 1 | CI74: 1 | CL74: 82 | CM74: A | CN74: 2 | CO74: 32 | CP74: 1 | CQ74: 1
BQ75: =AVERAGE(BQ73:BY73) -> 0.8002126603 | CD75: 69 | CE75: A | CF75: 2 | CG75: 19 | CH75: 1 | CI75: 1 | CL75: 83 | CM75: A | CN75: 2 | CO75: 33 | CP75: 1 | CQ75: 1
CD76: 70 | CE76: A | CF76: 2 | CG76: 20 | CH76: 1 | CI76: 1 | CL76: 84 | CM76: A | CN76: 2 | CO76: 34 | CP76: 0 | CQ76: 0
CD77: 71 | CE77: A | CF77: 2 | CG77: 21 | CH77: 1 | CI77: 1 | CL77: 85 | CM77: A | CN77: 2 | CO77: 35 | CP77: 1 | CQ77: 1
CD78: 72 | CE78: A | CF78: 2 | CG78: 22 | CH78: 0 | CI78: 0 | CL78: 86 | CM78: A | CN78: 2 | CO78: 36 | CP78: 1 | CQ78: 1
CD79: 73 | CE79: A | CF79: 2 | CG79: 23 | CH79: 1 | CI79: 1 | CL79: 101 | CM79: A | CN79: 3 | CO79: 1 | CP79: 1 | CQ79: 0
CD80: 74 | CE80: A | CF80: 2 | CG80: 24 | CH80: 1 | CI80: 1 | CL80: 102 | CM80: A | CN80: 3 | CO80: 2 | CP80: 1 | CQ80: 1
CD81: 75 | CE81: A | CF81: 2 | CG81: 25 | CH81: 0 | CI81: 0 | CL81: 103 | CM81: A | CN81: 3 | CO81: 3 | CP81: 0 | CQ81: 0
CD82: 76 | CE82: A | CF82: 2 | CG82: 26 | CH82: 1 | CI82: 0 | CL82: 104 | CM82: A | CN82: 3 | CO82: 4 | CP82: 0 | CQ82: 0
CD83: 77 | CE83: A | CF83: 2 | CG83: 27 | CH83: 1 | CI83: 1 | CL83: 105 | CM83: A | CN83: 3 | CO83: 5 | CP83: 0 | CQ83: 0
CD84: 78 | CE84: A | CF84: 2 | CG84: 28 | CH84: 1 | CI84: 1 | CL84: 106 | CM84: A | CN84: 3 | CO84: 6 | CP84: 0 | CQ84: 1
CD85: 79 | CE85: A | CF85: 2 | CG85: 29 | CH85: 1 | CI85: 1 | CL85: 107 | CM85: A | CN85: 3 | CO85: 7 | CP85: 1 | CQ85: 1
CD86: 80 | CE86: A | CF86: 2 | CG86: 30 | CH86: 0 | CI86: 0 | CL86: 108 | CM86: A | CN86: 3 | CO86: 8 | CP86: 1 | CQ86: 1
CD87: 81 | CE87: A | CF87: 2 | CG87: 31 | CH87: 1 | CI87: 1 | CL87: 109 | CM87: A | CN87: 3 | CO87: 9 | CP87: 0 | CQ87: 0
CD88: 82 | CE88: A | CF88: 2 | CG88: 32 | CH88: 1 | CI88: 1 | CL88: 110 | CM88: A | CN88: 3 | CO88: 10 | CP88: 1 | CQ88: 1
CD89: 83 | CE89: A | CF89: 2 | CG89: 33 | CH89: =D40 -> 1 | CI89: 1 | CL89: 111 | CM89: A | CN89: 3 | CO89: 11 | CP89: 1 | CQ89: 1
CD90: 84 | CE90: A | CF90: 2 | CG90: 34 | CH90: 0 | CI90: 0 | CL90: 112 | CM90: A | CN90: 3 | CO90: 12 | CP90: 0 | CQ90: 0
CD91: 85 | CE91: A | CF91: 2 | CG91: 35 | CH91: 1 | CI91: 1 | CL91: 113 | CM91: A | CN91: 3 | CO91: 13 | CP91: 1 | CQ91: 1
CD92: 86 | CE92: A | CF92: 2 | CG92: 36 | CH92: 1 | CI92: 1 | CL92: 114 | CM92: A | CN92: 3 | CO92: 14 | CP92: 0 | CQ92: 1
CD93: 87 | CE93: A | CF93: 2 | CG93: 37 | CL93: 115 | CM93: A | CN93: 3 | CO93: 15 | CP93: 1 | CQ93: 1
CD94: 88 | CE94: A | CF94: 2 | CG94: 38 | CL94: 116 | CM94: A | CN94: 3 | CO94: 16 | CP94: 1 | CQ94: 1
CD95: 89 | CE95: A | CF95: 2 | CG95: 39 | CL95: 117 | CM95: A | CN95: 3 | CO95: 17 | CP95: 1 | CQ95: 1
CD96: 90 | CE96: A | CF96: 2 | CG96: 40 | CL96: 118 | CM96: A | CN96: 3 | CO96: 18 | CP96: 1 | CQ96: 1
CD97: 91 | CE97: A | CF97: 2 | CG97: 41 | CL97: 119 | CM97: A | CN97: 3 | CO97: 19 | CP97: 1 | CQ97: 1
CD98: 92 | CE98: A | CF98: 2 | CG98: 42 | CL98: 120 | CM98: A | CN98: 3 | CO98: 20 | CP98: 1 | CQ98: 1
CD99: 93 | CE99: A | CF99: 2 | CG99: 43 | CL99: 121 | CM99: A | CN99: 3 | CO99: 21 | CP99: 0 | CQ99: 1
CD100: 94 | CE100: A | CF100: 2 | CG100: 44 | CL100: 122 | CM100: A | CN100: 3 | CO100: 22 | CP100: 1 | CQ100: 0
CD101: 95 | CE101: A | CF101: 2 | CG101: 45 | CL101: 123 | CM101: A | CN101: 3 | CO101: 23 | CP101: 1 | CQ101: 1
CD102: 96 | CE102: A | CF102: 2 | CG102: 46 | CL102: 124 | CM102: A | CN102: 3 | CO102: 24 | CP102: 1 | CQ102: 1
CD103: 97 | CE103: A | CF103: 2 | CG103: 47 | CL103: 125 | CM103: A | CN103: 3 | CO103: 25 | CP103: 0 | CQ103: 0
CD104: 98 | CE104: A | CF104: 2 | CG104: 48 | CL104: 126 | CM104: A | CN104: 3 | CO104: 26 | CP104: 0 | CQ104: 0
CD105: 99 | CE105: A | CF105: 2 | CG105: 49 | CL105: 127 | CM105: A | CN105: 3 | CO105: 27 | CP105: 1 | CQ105: 1
CD106: 100 | CE106: A | CF106: 2 | CG106: 50 | CL106: 128 | CM106: A | CN106: 3 | CO106: 28 | CP106: 1 | CQ106: 1
CD107: 101 | CE107: A | CF107: 3 | CG107: 1 | CH107: =E8 -> 1 | CI107: =I8 -> 0 | CL107: 129 | CM107: A | CN107: 3 | CO107: 29 | CP107: 1 | CQ107: 1
CD108: 102 | CE108: A | CF108: 3 | CG108: 2 | CH108: 1 | CI108: =I9 -> 1 | CL108: 130 | CM108: A | CN108: 3 | CO108: 30 | CP108: 0 | CQ108: 0
CD109: 103 | CE109: A | CF109: 3 | CG109: 3 | CH109: 0 | CI109: 0 | CL109: 131 | CM109: A | CN109: 3 | CO109: 31 | CP109: 1 | CQ109: 1
CD110: 104 | CE110: A | CF110: 3 | CG110: 4 | CH110: 0 | CI110: 0 | CL110: 132 | CM110: A | CN110: 3 | CO110: 32 | CP110: 1 | CQ110: 1
CD111: 105 | CE111: A | CF111: 3 | CG111: 5 | CH111: 0 | CI111: 0 | CL111: 133 | CM111: A | CN111: 3 | CO111: 33 | CP111: 1 | CQ111: 1
CD112: 106 | CE112: A | CF112: 3 | CG112: 6 | CH112: 0 | CI112: 1 | CL112: 134 | CM112: A | CN112: 3 | CO112: 34 | CP112: 1 | CQ112: 0
CD113: 107 | CE113: A | CF113: 3 | CG113: 7 | CH113: 1 | CI113: 1 | CL113: 135 | CM113: A | CN113: 3 | CO113: 35 | CP113: 1 | CQ113: 1
CD114: 108 | CE114: A | CF114: 3 | CG114: 8 | CH114: 1 | CI114: 1 | CL114: 136 | CM114: A | CN114: 3 | CO114: 36 | CP114: 0 | CQ114: 1
CD115: 109 | CE115: A | CF115: 3 | CG115: 9 | CH115: 0 | CI115: 0 | CL115: 151 | CM115: B | CN115: 4 | CO115: 1 | CP115: 1 | CQ115: 0
CD116: 110 | CE116: A | CF116: 3 | CG116: 10 | CH116: 1 | CI116: 1 | CL116: 152 | CM116: B | CN116: 4 | CO116: 2 | CP116: 1 | CQ116: 1
CD117: 111 | CE117: A | CF117: 3 | CG117: 11 | CH117: 1 | CI117: 1 | CL117: 153 | CM117: B | CN117: 4 | CO117: 3 | CP117: 0 | CQ117: 0
CD118: 112 | CE118: A | CF118: 3 | CG118: 12 | CH118: 0 | CI118: 0 | CL118: 154 | CM118: B | CN118: 4 | CO118: 4 | CP118: 0 | CQ118: 0
CD119: 113 | CE119: A | CF119: 3 | CG119: 13 | CH119: 1 | CI119: 1 | CL119: 155 | CM119: B | CN119: 4 | CO119: 5 | CP119: 0 | CQ119: 0
CD120: 114 | CE120: A | CF120: 3 | CG120: 14 | CH120: 0 | CI120: 1 | CL120: 156 | CM120: B | CN120: 4 | CO120: 6 | CP120: 1 | CQ120: 1
CD121: 115 | CE121: A | CF121: 3 | CG121: 15 | CH121: 1 | CI121: 1 | CL121: 157 | CM121: B | CN121: 4 | CO121: 7 | CP121: 1 | CQ121: 1
CD122: 116 | CE122: A | CF122: 3 | CG122: 16 | CH122: 1 | CI122: 1 | CL122: 158 | CM122: B | CN122: 4 | CO122: 8 | CP122: 1 | CQ122: 1
CD123: 117 | CE123: A | CF123: 3 | CG123: 17 | CH123: 1 | CI123: 1 | CL123: 159 | CM123: B | CN123: 4 | CO123: 9 | CP123: 0 | CQ123: 0
CD124: 118 | CE124: A | CF124: 3 | CG124: 18 | CH124: 1 | CI124: 1 | CL124: 160 | CM124: B | CN124: 4 | CO124: 10 | CP124: 1 | CQ124: 1
CD125: 119 | CE125: A | CF125: 3 | CG125: 19 | CH125: 1 | CI125: 1 | CL125: 161 | CM125: B | CN125: 4 | CO125: 11 | CP125: 1 | CQ125: 1
CD126: 120 | CE126: A | CF126: 3 | CG126: 20 | CH126: 1 | CI126: 1 | CL126: 162 | CM126: B | CN126: 4 | CO126: 12 | CP126: 0 | CQ126: 0
CD127: 121 | CE127: A | CF127: 3 | CG127: 21 | CH127: 0 | CI127: 1 | CL127: 163 | CM127: B | CN127: 4 | CO127: 13 | CP127: 1 | CQ127: 1
CD128: 122 | CE128: A | CF128: 3 | CG128: 22 | CH128: 1 | CI128: 0 | CL128: 164 | CM128: B | CN128: 4 | CO128: 14 | CP128: 1 | CQ128: 1
CD129: 123 | CE129: A | CF129: 3 | CG129: 23 | CH129: 1 | CI129: 1 | CL129: 165 | CM129: B | CN129: 4 | CO129: 15 | CP129: 1 | CQ129: 1
CD130: 124 | CE130: A | CF130: 3 | CG130: 24 | CH130: 1 | CI130: 1 | CL130: 166 | CM130: B | CN130: 4 | CO130: 16 | CP130: 1 | CQ130: 1
CD131: 125 | CE131: A | CF131: 3 | CG131: 25 | CH131: 0 | CI131: 0 | CL131: 167 | CM131: B | CN131: 4 | CO131: 17 | CP131: 1 | CQ131: 1
CD132: 126 | CE132: A | CF132: 3 | CG132: 26 | CH132: 0 | CI132: 0 | CL132: 168 | CM132: B | CN132: 4 | CO132: 18 | CP132: 1 | CQ132: 1
CD133: 127 | CE133: A | CF133: 3 | CG133: 27 | CH133: 1 | CI133: 1 | CL133: 169 | CM133: B | CN133: 4 | CO133: 19 | CP133: 1 | CQ133: 1
CD134: 128 | CE134: A | CF134: 3 | CG134: 28 | CH134: 1 | CI134: 1 | CL134: 170 | CM134: B | CN134: 4 | CO134: 20 | CP134: 1 | CQ134: 1
CD135: 129 | CE135: A | CF135: 3 | CG135: 29 | CH135: 1 | CI135: 1 | CL135: 171 | CM135: B | CN135: 4 | CO135: 21 | CP135: 1 | CQ135: 1
CD136: 130 | CE136: A | CF136: 3 | CG136: 30 | CH136: 0 | CI136: 0 | CL136: 172 | CM136: B | CN136: 4 | CO136: 22 | CP136: 0 | CQ136: 0
CD137: 131 | CE137: A | CF137: 3 | CG137: 31 | CH137: 1 | CI137: 1 | CL137: 173 | CM137: B | CN137: 4 | CO137: 23 | CP137: 1 | CQ137: 1
CD138: 132 | CE138: A | CF138: 3 | CG138: 32 | CH138: 1 | CI138: 1 | CL138: 174 | CM138: B | CN138: 4 | CO138: 24 | CP138: 1 | CQ138: 1
CD139: 133 | CE139: A | CF139: 3 | CG139: 33 | CH139: =E40 -> 1 | CI139: 1 | CL139: 175 | CM139: B | CN139: 4 | CO139: 25 | CP139: 0 | CQ139: 0
CD140: 134 | CE140: A | CF140: 3 | CG140: 34 | CH140: 1 | CI140: 0 | CL140: 176 | CM140: B | CN140: 4 | CO140: 26 | CP140: 0 | CQ140: 0
CD141: 135 | CE141: A | CF141: 3 | CG141: 35 | CH141: 1 | CI141: 1 | CL141: 177 | CM141: B | CN141: 4 | CO141: 27 | CP141: 1 | CQ141: 1
CD142: 136 | CE142: A | CF142: 3 | CG142: 36 | CH142: 0 | CI142: 1 | CL142: 178 | CM142: B | CN142: 4 | CO142: 28 | CP142: 1 | CQ142: 1
CD143: 137 | CE143: A | CF143: 3 | CG143: 37 | CL143: 179 | CM143: B | CN143: 4 | CO143: 29 | CP143: 1 | CQ143: 1
CD144: 138 | CE144: A | CF144: 3 | CG144: 38 | CL144: 180 | CM144: B | CN144: 4 | CO144: 30 | CP144: 0 | CQ144: 0
CD145: 139 | CE145: A | CF145: 3 | CG145: 39 | CL145: 181 | CM145: B | CN145: 4 | CO145: 31 | CP145: 1 | CQ145: 1
CD146: 140 | CE146: A | CF146: 3 | CG146: 40 | CL146: 182 | CM146: B | CN146: 4 | CO146: 32 | CP146: 1 | CQ146: 1
CD147: 141 | CE147: A | CF147: 3 | CG147: 41 | CL147: 183 | CM147: B | CN147: 4 | CO147: 33 | CP147: 1 | CQ147: 1
CD148: 142 | CE148: A | CF148: 3 | CG148: 42 | CL148: 184 | CM148: B | CN148: 4 | CO148: 34 | CP148: 0 | CQ148: 0
CD149: 143 | CE149: A | CF149: 3 | CG149: 43 | CL149: 185 | CM149: B | CN149: 4 | CO149: 35 | CP149: 1 | CQ149: 1
CD150: 144 | CE150: A | CF150: 3 | CG150: 44 | CL150: 186 | CM150: B | CN150: 4 | CO150: 36 | CP150: 1 | CQ150: 1
CD151: 145 | CE151: A | CF151: 3 | CG151: 45 | CL151: 201 | CM151: B | CN151: 5 | CO151: 1 | CP151: 1 | CQ151: 0
CD152: 146 | CE152: A | CF152: 3 | CG152: 46 | CL152: 202 | CM152: B | CN152: 5 | CO152: 2 | CP152: 1 | CQ152: 1
CD153: 147 | CE153: A | CF153: 3 | CG153: 47 | CL153: 203 | CM153: B | CN153: 5 | CO153: 3 | CP153: 0 | CQ153: 0
CD154: 148 | CE154: A | CF154: 3 | CG154: 48 | CL154: 204 | CM154: B | CN154: 5 | CO154: 4 | CP154: 0 | CQ154: 0
CD155: 149 | CE155: A | CF155: 3 | CG155: 49 | CL155: 205 | CM155: B | CN155: 5 | CO155: 5 | CP155: 0 | CQ155: 0
CD156: 150 | CE156: A | CF156: 3 | CG156: 50 | CL156: 206 | CM156: B | CN156: 5 | CO156: 6 | CP156: 1 | CQ156: 1
CD157: 151 | CE157: B | CF157: 4 | CG157: 1 | CH157: =F8 -> 1 | CI157: =I8 -> 0 | CL157: 207 | CM157: B | CN157: 5 | CO157: 7 | CP157: 1 | CQ157: 1
CD158: 152 | CE158: B | CF158: 4 | CG158: 2 | CH158: 1 | CI158: =I9 -> 1 | CL158: 208 | CM158: B | CN158: 5 | CO158: 8 | CP158: 1 | CQ158: 1
CD159: 153 | CE159: B | CF159: 4 | CG159: 3 | CH159: 0 | CI159: 0 | CL159: 209 | CM159: B | CN159: 5 | CO159: 9 | CP159: 0 | CQ159: 0
CD160: 154 | CE160: B | CF160: 4 | CG160: 4 | CH160: 0 | CI160: 0 | CL160: 210 | CM160: B | CN160: 5 | CO160: 10 | CP160: 1 | CQ160: 1
CD161: 155 | CE161: B | CF161: 4 | CG161: 5 | CH161: 0 | CI161: 0 | CL161: 211 | CM161: B | CN161: 5 | CO161: 11 | CP161: 1 | CQ161: 1
CD162: 156 | CE162: B | CF162: 4 | CG162: 6 | CH162: 1 | CI162: 1 | CL162: 212 | CM162: B | CN162: 5 | CO162: 12 | CP162: 0 | CQ162: 0
CD163: 157 | CE163: B | CF163: 4 | CG163: 7 | CH163: 1 | CI163: 1 | CL163: 213 | CM163: B | CN163: 5 | CO163: 13 | CP163: 1 | CQ163: 1
CD164: 158 | CE164: B | CF164: 4 | CG164: 8 | CH164: 1 | CI164: 1 | CL164: 214 | CM164: B | CN164: 5 | CO164: 14 | CP164: 1 | CQ164: 1
CD165: 159 | CE165: B | CF165: 4 | CG165: 9 | CH165: 0 | CI165: 0 | CL165: 215 | CM165: B | CN165: 5 | CO165: 15 | CP165: 1 | CQ165: 1
CD166: 160 | CE166: B | CF166: 4 | CG166: 10 | CH166: 1 | CI166: 1 | CL166: 216 | CM166: B | CN166: 5 | CO166: 16 | CP166: 1 | CQ166: 1
CD167: 161 | CE167: B | CF167: 4 | CG167: 11 | CH167: 1 | CI167: 1 | CL167: 217 | CM167: B | CN167: 5 | CO167: 17 | CP167: 1 | CQ167: 1
CD168: 162 | CE168: B | CF168: 4 | CG168: 12 | CH168: 0 | CI168: 0 | CL168: 218 | CM168: B | CN168: 5 | CO168: 18 | CP168: 1 | CQ168: 1
CD169: 163 | CE169: B | CF169: 4 | CG169: 13 | CH169: 1 | CI169: 1 | CL169: 219 | CM169: B | CN169: 5 | CO169: 19 | CP169: 1 | CQ169: 1
CD170: 164 | CE170: B | CF170: 4 | CG170: 14 | CH170: 1 | CI170: 1 | CL170: 220 | CM170: B | CN170: 5 | CO170: 20 | CP170: 1 | CQ170: 1
CD171: 165 | CE171: B | CF171: 4 | CG171: 15 | CH171: 1 | CI171: 1 | CL171: 221 | CM171: B | CN171: 5 | CO171: 21 | CP171: 0 | CQ171: 1
CD172: 166 | CE172: B | CF172: 4 | CG172: 16 | CH172: 1 | CI172: 1 | CL172: 222 | CM172: B | CN172: 5 | CO172: 22 | CP172: 1 | CQ172: 0
CD173: 167 | CE173: B | CF173: 4 | CG173: 17 | CH173: 1 | CI173: 1 | CL173: 223 | CM173: B | CN173: 5 | CO173: 23 | CP173: 1 | CQ173: 1
CD174: 168 | CE174: B | CF174: 4 | CG174: 18 | CH174: 1 | CI174: 1 | CL174: 224 | CM174: B | CN174: 5 | CO174: 24 | CP174: 1 | CQ174: 1
CD175: 169 | CE175: B | CF175: 4 | CG175: 19 | CH175: 1 | CI175: 1 | CL175: 225 | CM175: B | CN175: 5 | CO175: 25 | CP175: 0 | CQ175: 0
CD176: 170 | CE176: B | CF176: 4 | CG176: 20 | CH176: 1 | CI176: 1 | CL176: 226 | CM176: B | CN176: 5 | CO176: 26 | CP176: 0 | CQ176: 0
CD177: 171 | CE177: B | CF177: 4 | CG177: 21 | CH177: 1 | CI177: 1 | CL177: 227 | CM177: B | CN177: 5 | CO177: 27 | CP177: 1 | CQ177: 1
CD178: 172 | CE178: B | CF178: 4 | CG178: 22 | CH178: 0 | CI178: 0 | CL178: 228 | CM178: B | CN178: 5 | CO178: 28 | CP178: 1 | CQ178: 1
CD179: 173 | CE179: B | CF179: 4 | CG179: 23 | CH179: 1 | CI179: 1 | CL179: 229 | CM179: B | CN179: 5 | CO179: 29 | CP179: 1 | CQ179: 1
CD180: 174 | CE180: B | CF180: 4 | CG180: 24 | CH180: 1 | CI180: 1 | CL180: 230 | CM180: B | CN180: 5 | CO180: 30 | CP180: 0 | CQ180: 0
CD181: 175 | CE181: B | CF181: 4 | CG181: 25 | CH181: 0 | CI181: 0 | CL181: 231 | CM181: B | CN181: 5 | CO181: 31 | CP181: 1 | CQ181: 1
CD182: 176 | CE182: B | CF182: 4 | CG182: 26 | CH182: 0 | CI182: 0 | CL182: 232 | CM182: B | CN182: 5 | CO182: 32 | CP182: 1 | CQ182: 1
CD183: 177 | CE183: B | CF183: 4 | CG183: 27 | CH183: 1 | CI183: 1 | CL183: 233 | CM183: B | CN183: 5 | CO183: 33 | CP183: 1 | CQ183: 1
CD184: 178 | CE184: B | CF184: 4 | CG184: 28 | CH184: 1 | CI184: 1 | CL184: 234 | CM184: B | CN184: 5 | CO184: 34 | CP184: 0 | CQ184: 0
CD185: 179 | CE185: B | CF185: 4 | CG185: 29 | CH185: 1 | CI185: 1 | CL185: 235 | CM185: B | CN185: 5 | CO185: 35 | CP185: 1 | CQ185: 1
CD186: 180 | CE186: B | CF186: 4 | CG186: 30 | CH186: 0 | CI186: 0 | CL186: 236 | CM186: B | CN186: 5 | CO186: 36 | CP186: 1 | CQ186: 1
CD187: 181 | CE187: B | CF187: 4 | CG187: 31 | CH187: 1 | CI187: 1 | CL187: 251 | CM187: B | CN187: 6 | CO187: 1 | CP187: 1 | CQ187: 0
CD188: 182 | CE188: B | CF188: 4 | CG188: 32 | CH188: 1 | CI188: 1 | CL188: 252 | CM188: B | CN188: 6 | CO188: 2 | CP188: 1 | CQ188: 1
CD189: 183 | CE189: B | CF189: 4 | CG189: 33 | CH189: =F40 -> 1 | CI189: 1 | CL189: 253 | CM189: B | CN189: 6 | CO189: 3 | CP189: 0 | CQ189: 0
CD190: 184 | CE190: B | CF190: 4 | CG190: 34 | CH190: 0 | CI190: 0 | CL190: 254 | CM190: B | CN190: 6 | CO190: 4 | CP190: 0 | CQ190: 0
CD191: 185 | CE191: B | CF191: 4 | CG191: 35 | CH191: 1 | CI191: 1 | CL191: 255 | CM191: B | CN191: 6 | CO191: 5 | CP191: 0 | CQ191: 0
CD192: 186 | CE192: B | CF192: 4 | CG192: 36 | CH192: 1 | CI192: 1 | CL192: 256 | CM192: B | CN192: 6 | CO192: 6 | CP192: 0 | CQ192: 1
CD193: 187 | CE193: B | CF193: 4 | CG193: 37 | CL193: 257 | CM193: B | CN193: 6 | CO193: 7 | CP193: 1 | CQ193: 1
CD194: 188 | CE194: B | CF194: 4 | CG194: 38 | CL194: 258 | CM194: B | CN194: 6 | CO194: 8 | CP194: 1 | CQ194: 1
CD195: 189 | CE195: B | CF195: 4 | CG195: 39 | CL195: 259 | CM195: B | CN195: 6 | CO195: 9 | CP195: 0 | CQ195: 0
CD196: 190 | CE196: B | CF196: 4 | CG196: 40 | CL196: 260 | CM196: B | CN196: 6 | CO196: 10 | CP196: 1 | CQ196: 1
CD197: 191 | CE197: B | CF197: 4 | CG197: 41 | CL197: 261 | CM197: B | CN197: 6 | CO197: 11 | CP197: 1 | CQ197: 1
CD198: 192 | CE198: B | CF198: 4 | CG198: 42 | CL198: 262 | CM198: B | CN198: 6 | CO198: 12 | CP198: 0 | CQ198: 0
CD199: 193 | CE199: B | CF199: 4 | CG199: 43 | CL199: 263 | CM199: B | CN199: 6 | CO199: 13 | CP199: 1 | CQ199: 1
CD200: 194 | CE200: B | CF200: 4 | CG200: 44 | CL200: 264 | CM200: B | CN200: 6 | CO200: 14 | CP200: 1 | CQ200: 1
CD201: 195 | CE201: B | CF201: 4 | CG201: 45 | CL201: 265 | CM201: B | CN201: 6 | CO201: 15 | CP201: 1 | CQ201: 1
... 255 more rows

Sheet Musterwerte Validierung Info
A1: Info und Kontakt | C1: roland.schnurr@sixsigmablackbelt.de
A2: Homepage: | C2: www.sixsigmablackbelt.de
A5: Teil | B5: Prüfergebnisse | H5: Refe-renz | T5: Teil | U5: Prüfergebnisse | AA5: Refe-renz | AB5: Ref. Wert | AC5: Code
B6: A-1 | C6: A-2 | D6: A-3 | E6: A-4 | F6: A-5 | G6: A-6 | U6: A-1 | V6: A-2 | W6: A-3 | X6: A-4 | Y6: A-5 | Z6: A-6
A7: 1 | B7: 1 | C7: 1 | D7: 1 | E7: 1 | F7: 1 | G7: 1 | H7: 0 | T7: 1 | U7: 1 | V7: 1 | W7: 1 | X7: 1 | Y7: 1 | Z7: 1 | AA7: 0 | AC7: =IF(U7<>"",IF(SUM(U7:AA7)=COUNT(U7:AA7),"+",IF(SUM(U7:AA7)=0,"-","x")),"") -> x
A8: =A7+1 -> 2 | B8: 1 | C8: 1 | D8: 1 | E8: 1 | F8: 1 | G8: 1 | H8: 1 | T8: =T7+1 -> 2 | U8: 1 | V8: 1 | W8: 1 | X8: 1 | Y8: 1 | Z8: 1 | AA8: 1 | AC8: +
A9: 3 | B9: 0 | C9: 0 | D9: 0 | E9: 0 | F9: 0 | G9: 0 | H9: 0 | T9: 3 | U9: 0 | V9: 0 | W9: 0 | X9: 0 | Y9: 0 | Z9: 0 | AA9: 0 | AC9: -
A10: 4 | B10: 0 | C10: 0 | D10: 0 | E10: 0 | F10: 0 | G10: 0 | H10: 0 | T10: 4 | U10: 0 | V10: 0 | W10: 0 | X10: 0 | Y10: 0 | Z10: 0 | AA10: 0 | AC10: -
A11: 5 | B11: 0 | C11: 0 | D11: 0 | E11: 0 | F11: 0 | G11: 0 | H11: 0 | T11: 5 | U11: 0 | V11: 0 | W11: 0 | X11: 0 | Y11: 0 | Z11: 0 | AA11: 0 | AC11: -
A12: 6 | B12: 1 | C12: 1 | D12: 0 | E12: 1 | F12: 1 | G12: 0 | H12: 1 | T12: 6 | U12: 1 | V12: 1 | W12: 0 | X12: 1 | Y12: 1 | Z12: 0 | AA12: 1 | AC12: x
A13: 7 | B13: 1 | C13: 1 | D13: 1 | E13: 1 | F13: 1 | G13: 1 | H13: 1 | T13: 7 | U13: 1 | V13: 1 | W13: 1 | X13: 1 | Y13: 1 | Z13: 1 | AA13: 1 | AC13: +
A14: 8 | B14: 1 | C14: 1 | D14: 1 | E14: 1 | F14: 1 | G14: 1 | H14: 1 | T14: 8 | U14: 1 | V14: 1 | W14: 1 | X14: 1 | Y14: 1 | Z14: 1 | AA14: 1 | AC14: +
A15: 9 | B15: 0 | C15: 0 | D15: 0 | E15: 0 | F15: 0 | G15: 0 | H15: 0 | T15: 9 | U15: 0 | V15: 0 | W15: 0 | X15: 0 | Y15: 0 | Z15: 0 | AA15: 0 | AC15: -
A16: 10 | B16: 1 | C16: 1 | D16: 1 | E16: 1 | F16: 1 | G16: 1 | H16: 1 | T16: 10 | U16: 1 | V16: 1 | W16: 1 | X16: 1 | Y16: 1 | Z16: 1 | AA16: 1 | AC16: +
A17: 11 | B17: 1 | C17: 1 | D17: 1 | E17: 1 | F17: 1 | G17: 1 | H17: 1 | T17: 11 | U17: 1 | V17: 1 | W17: 1 | X17: 1 | Y17: 1 | Z17: 1 | AA17: 1 | AC17: +
A18: 12 | B18: 0 | C18: 0 | D18: 0 | E18: 0 | F18: 0 | G18: 0 | H18: 0 | T18: 12 | U18: 0 | V18: 0 | W18: 0 | X18: 0 | Y18: 0 | Z18: 0 | AA18: 0 | AC18: -
A19: 13 | B19: 1 | C19: 1 | D19: 1 | E19: 1 | F19: 1 | G19: 1 | H19: 1 | T19: 13 | U19: 1 | V19: 1 | W19: 1 | X19: 1 | Y19: 1 | Z19: 1 | AA19: 1 | AC19: +
A20: 14 | B20: 1 | C20: 1 | D20: 0 | E20: 1 | F20: 1 | G20: 1 | H20: 1 | T20: 14 | U20: 1 | V20: 1 | W20: 0 | X20: 1 | Y20: 1 | Z20: 1 | AA20: 1 | AC20: x
A21: 15 | B21: 1 | C21: 1 | D21: 1 | E21: 1 | F21: 1 | G21: 1 | H21: 1 | T21: 15 | U21: 1 | V21: 1 | W21: 1 | X21: 1 | Y21: 1 | Z21: 1 | AA21: 1 | AC21: +
A22: 16 | B22: 1 | C22: 1 | D22: 1 | E22: 1 | F22: 1 | G22: 1 | H22: 1 | T22: 16 | U22: 1 | V22: 1 | W22: 1 | X22: 1 | Y22: 1 | Z22: 1 | AA22: 1 | AC22: +
A23: 17 | B23: 1 | C23: 1 | D23: 1 | E23: 1 | F23: 1 | G23: 1 | H23: 1 | T23: 17 | U23: 1 | V23: 1 | W23: 1 | X23: 1 | Y23: 1 | Z23: 1 | AA23: 1 | AC23: +
A24: 18 | B24: 1 | C24: 1 | D24: 1 | E24: 1 | F24: 1 | G24: 1 | H24: 1 | T24: 18 | U24: 1 | V24: 1 | W24: 1 | X24: 1 | Y24: 1 | Z24: 1 | AA24: 1 | AC24: +
A25: 19 | B25: 1 | C25: 1 | D25: 1 | E25: 1 | F25: 1 | G25: 1 | H25: 1 | T25: 19 | U25: 1 | V25: 1 | W25: 1 | X25: 1 | Y25: 1 | Z25: 1 | AA25: 1 | AC25: +
A26: 20 | B26: 1 | C26: 1 | D26: 1 | E26: 1 | F26: 1 | G26: 1 | H26: 1 | T26: 20 | U26: 1 | V26: 1 | W26: 1 | X26: 1 | Y26: 1 | Z26: 1 | AA26: 1 | AC26: +
A27: 21 | B27: 1 | C27: 1 | D27: 0 | E27: 1 | F27: 0 | G27: 1 | H27: 1 | J27: Minitab 2023 | T27: 21 | U27: 1 | V27: 1 | W27: 0 | X27: 1 | Y27: 0 | Z27: 1 | AA27: 1 | AC27: x | AE27: Minitab 2023
A28: 22 | B28: 0 | C28: 0 | D28: 1 | E28: 0 | F28: 1 | G28: 0 | H28: 0 | T28: 22 | U28: 0 | V28: 0 | W28: 1 | X28: 0 | Y28: 1 | Z28: 0 | AA28: 0 | AC28: x
A29: 23 | B29: 1 | C29: 1 | D29: 1 | E29: 1 | F29: 1 | G29: 1 | H29: 1 | T29: 23 | U29: 1 | V29: 1 | W29: 1 | X29: 1 | Y29: 1 | Z29: 1 | AA29: 1 | AC29: +
A30: 24 | B30: 1 | C30: 1 | D30: 1 | E30: 1 | F30: 1 | G30: 1 | H30: 1 | T30: 24 | U30: 1 | V30: 1 | W30: 1 | X30: 1 | Y30: 1 | Z30: 1 | AA30: 1 | AC30: +
A31: 25 | B31: 0 | C31: 0 | D31: 0 | E31: 0 | F31: 0 | G31: 0 | H31: 0 | T31: 25 | U31: 0 | V31: 0 | W31: 0 | X31: 0 | Y31: 0 | Z31: 0 | AA31: 0 | AC31: -
A32: 26 | B32: 0 | C32: 1 | D32: 0 | E32: 0 | F32: 0 | G32: 0 | H32: 0 | T32: 26 | U32: 0 | V32: 1 | W32: 0 | X32: 0 | Y32: 0 | Z32: 0 | AA32: 0 | AC32: x
A33: 27 | B33: 1 | C33: 1 | D33: 1 | E33: 1 | F33: 1 | G33: 1 | H33: 1 | T33: 27 | U33: 1 | V33: 1 | W33: 1 | X33: 1 | Y33: 1 | Z33: 1 | AA33: 1 | AC33: +
A34: 28 | B34: 1 | C34: 1 | D34: 1 | E34: 1 | F34: 1 | G34: 1 | H34: 1 | T34: 28 | U34: 1 | V34: 1 | W34: 1 | X34: 1 | Y34: 1 | Z34: 1 | AA34: 1 | AC34: +
A35: 29 | B35: 1 | C35: 1 | D35: 1 | E35: 1 | F35: 1 | G35: 1 | H35: 1 | T35: 29 | U35: 1 | V35: 1 | W35: 1 | X35: 1 | Y35: 1 | Z35: 1 | AA35: 1 | AC35: +
A36: 30 | B36: 0 | C36: 0 | D36: 0 | E36: 0 | F36: 0 | G36: 1 | H36: 0 | T36: 30 | U36: 0 | V36: 0 | W36: 0 | X36: 0 | Y36: 0 | Z36: 1 | AA36: 0 | AC36: x
A37: 31 | B37: 1 | C37: 1 | D37: 1 | E37: 1 | F37: 1 | G37: 1 | H37: 1 | T37: 31 | U37: 1 | V37: 1 | W37: 1 | X37: 1 | Y37: 1 | Z37: 1 | AA37: 1 | AC37: +
A38: 32 | B38: 1 | C38: 1 | D38: 1 | E38: 1 | F38: 1 | G38: 1 | H38: 1 | T38: 32 | U38: 1 | V38: 1 | W38: 1 | X38: 1 | Y38: 1 | Z38: 1 | AA38: 1 | AC38: +
A39: 33 | B39: 1 | C39: 1 | D39: 1 | E39: 1 | F39: 1 | G39: 1 | H39: 1 | T39: 33 | U39: 1 | V39: 1 | W39: 1 | X39: 1 | Y39: 1 | Z39: 1 | AA39: 1 | AC39: +
A40: 34 | B40: 0 | C40: 0 | D40: 1 | E40: 0 | F40: 0 | G40: 1 | H40: 0 | T40: 34 | U40: 0 | V40: 0 | W40: 1 | X40: 0 | Y40: 0 | Z40: 1 | AA40: 0 | AC40: x
A41: 35 | B41: 1 | C41: 1 | D41: 1 | E41: 1 | F41: 1 | G41: 1 | H41: 1 | T41: 35 | U41: 1 | V41: 1 | W41: 1 | X41: 1 | Y41: 1 | Z41: 1 | AA41: 1 | AC41: +
A42: 36 | B42: 1 | C42: 1 | D42: 0 | E42: 1 | F42: 1 | G42: 1 | H42: 1 | T42: 36 | U42: 1 | V42: 1 | W42: 0 | X42: 1 | Y42: 1 | Z42: 1 | AA42: 1 | AC42: x
A43: 37 | B43: 0 | C43: 0 | D43: 0 | E43: 0 | F43: 0 | G43: 0 | H43: 0
A44: 38 | B44: 1 | C44: 1 | D44: 1 | E44: 1 | F44: 1 | G44: 1 | H44: 1
A45: 39 | B45: 0 | C45: 0 | D45: 0 | E45: 0 | F45: 0 | G45: 0 | H45: 0
A46: 40 | B46: 1 | C46: 1 | D46: 1 | E46: 1 | F46: 1 | G46: 1 | H46: 1
A47: =A46+1 -> 41 | B47: 1 | C47: 1 | D47: 1 | E47: 1 | F47: 1 | G47: 1 | H47: 1
A48: =A47+1 -> 42 | B48: 0 | C48: 0 | D48: 0 | E48: 0 | F48: 0 | G48: 0 | H48: 0
A49: 43 | B49: 1 | C49: 0 | D49: 1 | E49: 1 | F49: 1 | G49: 1 | H49: 1
A50: 44 | B50: 1 | C50: 1 | D50: 1 | E50: 1 | F50: 1 | G50: 1 | H50: 1
A51: 45 | B51: 0 | C51: 0 | D51: 0 | E51: 0 | F51: 0 | G51: 0 | H51: 0
A52: 46 | B52: 1 | C52: 1 | D52: 1 | E52: 1 | F52: 1 | G52: 1 | H52: 1
A53: 47 | B53: 1 | C53: 1 | D53: 1 | E53: 1 | F53: 1 | G53: 1 | H53: 1
A54: 48 | B54: 0 | C54: 0 | D54: 0 | E54: 0 | F54: 0 | G54: 0 | H54: 0
A55: 49 | B55: 1 | C55: 1 | D55: 1 | E55: 1 | F55: 1 | G55: 1 | H55: 1
A56: 50 | B56: 0 | C56: 0 | D56: 0 | E56: 0 | F56: 0 | G56: 0 | H56: 0
